Workbook

Sheet Cover
A1: =RIGHT(CELL("filename", $A$1), LEN(CELL("filename", $A$1)) - SEARCH("]", CELL("filename", $A$1))) -> Cover
C3: Model name: | D3: WINEP Reconciliation Model
C4: Version number: | D4: 1n
C5: Filename: | D5: WINEP-Reconciliation-Model-Dec-2020-v1n.xlsm
C6: Date: | D6: 2020-12-02
C7: Author: | D7: Ofwat
C8: Author contact information: | D8: OfwatPAndO@ofwat.gov.uk
C11: Summary of model: | D11: This illustrative model is designed to show how we will account for the impact of ministerial decisions on the scale of companies’ environmental enhancement programmes where this differs from our assumptions made at FD. Please note that, for brevity, the term 'WINEP' is used throughout. However, it should be taken to include both the WINEP in England and the NEP in Wales.
D12: On sheet "WINEP_Allowance" we set out the adjustments we will make for each scheme in the company's WINEP programme that at the time of the final determination was unconfirmed. We show what will happen to adjust allowed totex for cost sharing, whether the scheme is confirmed as required or confirmed not required for the period 2020-25. For some companies there will be schemes listed that were not included in our enhancement allowance when we made our final determinations. We will make an opposite adjustment for these.
D13: On sheet "WINEP_Schemes" we convert the units used for each company’s unit cost mechanism as set out in the Cost Efficiency appendix to the company summary document of our Final Determinations. This is a bespoke conversion required for each company and the units shown are for illustration. Not all units shown will be relevant to every company.
D14: For most schemes the proportion confirmed will be either 100% or 0%. We have included a 'Proportion Confirmed' column to allow for the possibility that a scheme is partially confirmed. For example, if a scheme involves work on all reservoirs in a region but some reservoirs are subsequently sold then a reconciliation will be made to recover a proportion of the scheme's costs.
D15: Where schemes have been partially removed the company must present evidence that the proportion remaining has been signed off by the Environment Agency or Natural Resources Wales.
D17: NB - The model price base is 'CPIH Financial year average 2017/18', unless otherwise stated.
C20: Known limitations: | D20: Issue | F20: Details | G20: Model link
D21: Illustrative Model | F21: This is an initial, illustrative model. We may make refinements to it in due course.
C23: Change Log: | D23: Sheet(s) in current model | F23: Description of change(s) made | G23: Model link(s)
D24: Track | F24: Linked to correct cells in model. Previously this was incorrectly linked to blank cells. Added some additional tracking lines. | G24: =Track!A1 -> Track
D25: User Guide | F25: Expanded the description of how to load the WINEP input data. | G25: ='User Guide'!D13 -> INITIAL SET UP
D26: WINEP_Schemes | F26: Relabelled "Quantity" as "Quantity in PR19 FD" | G26: =WINEP_Schemes!J9 -> Quantity in PR19 FD
D27: WINEP_Schemes | F27: Added new column "Quantity Delivered" and changed the input "Proportion confirmed" to be a calculation of "Quantity Delivered" divided by "Quantity in PR19 FD". | G27: =WINEP_Schemes!K9 -> Quantity Delivered
D28: WINEP_Schemes | F28: Changed all Inputs to be brought forward from the WINEP_Inputs sheet. This affects "Unit", "Unit Conversion", "Quantity" and "Price Control" | G28: =WINEP_Schemes!F9 -> Unit
D29: WINEP_Inputs | F29: Columns CR to CX now contain the WINEP inputs that need to be manually entered. The columns have been re-labelled for clarity. | G29: =WINEP_Inputs!CR3 -> WINEP model inputs
D30: Annual_Outputs | F30: Relabelled the WINEP reconciliation outputs and added additional text for clarity. | G30: =Annual_Outputs!E26 -> WINEP Reconciliation, water resources - without adjustment for time value of money
C32: Instructions: | D32: A model 'User guide' is present in the model to help the user in operating the model.
D33: Follow link >> | E33: Goto User Guide
C35: Error check status: | D35: =Check!$F$2 -> 0 | E35: =IF(D35 = 0, "No error checks", "Error checks active") -> No error checks
D36: =Check!$F$3 -> 3 | E36: =IF(D36 = 0, "No output changes", "Output changes") -> Output changes
A40: End of sheet

Sheet Documentation >>

Sheet User Guide
A1: =RIGHT(CELL("filename", $A$1), LEN(CELL("filename", $A$1)) - SEARCH("]", CELL("filename", $A$1))) -> User Guide
B3: INTRODUCTION
E5: This model will calculate the WINEP reconciliation adjustment in £m.
D7: NAVIGATION
E8: In order to navigate through the model the following key strokes will prove useful:
E9: - To go to a sheet or row select a blue font cell and then either press CTRL+ [ or double click
E10: - To return to the last position press F5 + Enter
E11: - In accordance with best practice, the model is saved with a "Manual Calculation" setting. To ensure a full recalculation press: Ctrl + Alt + F9
D13: INITIAL SET UP
E14: On first use of the model the WINEP_inputs sheet needs to be updated from the 2019 WINEP spreadsheet. You must use the list of WINEP sites as at Final Determination.
D16: 1) | E16: The WINEP_Inputs sheet needs to be setup so that the correct information is loaded onto the WINEP_Schemes sheet. Since all companies have used different units the procedure for doing this will vary. Most companies will be able to follow the steps below:
D17: Step 1 - | E17: In the WINEP workbook identify all schemes that were Amber in the PR19 Final Determination WINEP workbook.
D18: Step 2 - | E18: Copy the schemes to cell C5 of WINEP_Inputs maintaining the column layout of the PR19 Final Determination WINEP spreadsheet.
D19: Step 3 - | E19: Complete column CR for all rows, 'Allowed totex unit rate'. This feeds through to the WINEP_Schemes sheet and should be copied directly from the tables in the Cost Efficiency appendix to the company summary document of our Final Determinations.
D20: Step 4 - | E20: Complete column CS for all rows, 'Quantity proposed in PR19 FD. This feeds through to the WINEP_Schemes sheet and is the amount to be delivered as stated in the Cost Efficiency appendix to the company summary document of our Final Determinations. This should be entered in the appropriate units e.g. £m per benefit point, £ per km LORI, £ per kgP/day removed, etc
D21: Step 5 - | E21: Complete column CT for all rows, 'Quantity Delivered'. This feeds through to the WINEP_Schemes sheet and is the actual amount delivered. The proportion confirmed is then calculated from the inputs in columns CS and CT.
D22: Step 6 - | E22: Complete column CU for all rows with a 1 if the scheme was costed in the FD or a 0 if the scheme was not costed
D23: Step 7 - | E23: In column CV select for all rows the price control that the WINEP adjustment will be applied to
D24: Step 8 - | E24: Enter the units into column CW and a conversion factor into column CX to convert into £m.
D26: 2) | E26: InpTime sheet : This is the sheet where all the Inputs related to dates and timelines are set up:
E27: =Time!A1 -> Time
D29: 3) | E29: InpAct sheet : This is the sheet where all the Inputs used in the model calculations are present, all the inputs flow from this sheet into the model calculations:
E30: =InpActive!A1 -> InpActive
E31: Update all Input cells as required.
E33: Recalculate the model once all the sheets are updated. Press Ctrl + Alt + F9
B37: HOW TO SAVE A PDF COPY OF ANY SHEET
D39: Step 1 - | E39: To save a sheet in PDF format, press button "Save as PDF"
D43: Step 2 - | E43: In the dialog box, "Enter sheet name", type the name of the sheet you want to save
D45: Step 3 - | E45: In the dialog box, "Save As" change the file name if required
D47: Step 4 - | E47: Press "Save" to save a Pdf copy of the sheet
B51: HOW TO STORE TRACK IN TRACK SHEET
D53: USING MACRO
E54: To store Track in the Track sheet using the macro, follow the steps below:
D56: Step 1 - | E56: Go to the Track sheet and press the "Store Track" button to save the track for a new case
E57: Store Track
D59: Step 2 - | E59: A dialog box "Enter the label for the new track column" will appear, type the new track label (for example: "version 17r"), the label will appear in row 6
D61: Step 3 - | E61: A dialog box "Enter the comment for the new track" will appear, write a brief description of the change. The description will be appear at the bottom of the track column
D63: Step 4 - | E63: Press enter, a new track column will appear before the last stored track
D65: Step 5 - | E65: Review the difference between stored cases and active case (col H) by selecting the stored case in cell H6.
D67: MANUAL METHOD
E69: To store Track in the Track sheet manually, follow the steps below:
D71: Step 1 - | E71: Select the column by pressing Ctrl + Spacebar and Copy (Ctrl + C). Then insert a new column after the last stored column by pressing Alt, I, E
D73: Step 2 - | E73: Select the newly inserted column (Ctrl + Spacebar) and delete the previously stored values from this column by pressing Delete button
D75: Step 3 - | E75: Go to active track column (H column). Select the range from H6 till 'do not delete row - range end' row and Copy (Ctrl + C)
D77: Step 4 - | E77: Paste the selected values (Alt E, S, V) in newly inserted column
D79: Step 5 - | E79: Update 'New track name' in row 6 of newly inserted column. Then select 'New track name' from the dropdown list present in H6.
D81: Step 6 - | E81: Review the difference between stored cases and active case (col H) by selecting the stored case in cell H6.
A85: End of sheet

Sheet ToC
A1: =RIGHT(CELL("filename", $A$1), LEN(CELL("filename", $A$1)) - SEARCH("]", CELL("filename", $A$1))) -> ToC
A3: GENERIC MODEL DESIGN
F5: Table of Contents
H8: DOCUMENTATION | L8: MODEL INPUTS | Q8: MODEL CALCULATIONS | V8: MODEL OUTPUTS | Z8: MODEL QA
H10: Cover | L10: WINEP_Inputs | Q10: WINEP_Schemes | V10: Annual_Outputs | Z10: Check
H11: Model cover sheet | L11: WINEP inputs from business plans | Q11: List of WINEP Amber schemes | V11: Annual profile of WINEP reconciliation | Z11: Checks
H13: User Guide | L13: Time | Q13: WINEP_Allowance | V13: F_Outputs | Z13: Track
H14: Explanation of setup and macros | L14: Dates and timelines | Q14: Calculation of allowed cost | V14: Outputs to be uploaded to Fountain | Z14: Model changes and track records
H16: ToC | L16: InpActive
H17: Table of contents | L17: All inputs to be flowed into model
H19: Style Guide
H20: Explanation of different formatting types
A25: End of sheet

Sheet Model formatting
A1: =RIGHT(CELL("filename", $A$1), LEN(CELL("filename", $A$1)) - SEARCH("]", CELL("filename", $A$1))) -> Model formatting
A4: SHEET TABS
E6: Light Yellow | G6: Input sheets
E8: No colour (default Excel tab colour) | G8: Calculation and documentation sheets
E10: Pale Blue | G10: Key output sheets
E12: Turquoise | G12: Quality control sheets
E14: Yellow | G14: To be completed, temporary, restructured, or deleted
E16: Orange | G16: To be used for internal purposes only, removed prior to publication
A18: COLOUR
B20: Font colour only
E21: Blue font | G21: Imported from another sheet
E23: Red font | G23: Exported to another sheet (except from Input sheets)
E25: Black font | G25: Within sheet link or calculation
B27: Font + shade combinations
E28: Black font + Light Yellow shade | G28: Inputs
E30: Black font + Light Grey shade on entire row | G30: Within-worksheet counter-flow
E32: Blue font + Light Grey shade on entire row | G32: Between-worksheet counter-flow
E34: Empty Cell with Light Grey shade | G34: Empty cells being deliberately referenced
B36: Other
E37: Black font + Pale Blue shade on entire row | G37: Section separator
E39: Light Turquoise shade | G39: Stored/dead/hard coded outputs
E41: Tan shade | G41: Pre-model time line actuals
E43: Yellow shade | G43: Work in progress / temporary
E45: Lime shade | G45: Values or logic to be reviewed
B47: Error checks & alerts
E48: Green shade | G48: OK
E50: Red shade | G50: Error
E52: Gold shade | G52: Alert
A54: ABBREVIATIONS
E56: WINEP | G56: Water Industry National Environment Programme
E57: £ | G57: Great Britain Pound
E58: m | G58: Million
E59: na | G59: Not available / applicable
E60: # | G60: Number
A62: LIST OF MACROS USED
E64: Store track results
G65: This macro helps in storing the results/outputs after any change is made in the model on "Track" sheet.
G66: These stored results then can be used to analyse the impact of any change made in the model.
G67: Goto macro
E69: Save as PDF
G70: This macro helps in saving any worksheet or chart in PDF format.
A72: END OF SHEET

Sheet Inputs >>

Sheet Time
A1: =RIGHT(CELL("filename", $A$1), LEN(CELL("filename", $A$1)) - SEARCH("]", CELL("filename", $A$1))) -> Time
E2: =Time!E$25 -> Model period ending | J2: =Time!J$25 -> 2019-03-31 | K2: =Time!K$25 -> 2020-03-31 | L2: =Time!L$25 -> 2021-03-31 | M2: =Time!M$25 -> 2022-03-31 | N2: =Time!N$25 -> 2023-03-31 | O2: =Time!O$25 -> 2024-03-31 | P2: =Time!P$25 -> 2025-03-31 | Q2: =Time!Q$25 -> 2026-03-31 | R2: =Time!R$25 -> 2027-03-31 | S2: =Time!S$25 -> 2028-03-31 | T2: =Time!T$25 -> 2029-03-31
E3: =Time!E$107 -> Timeline label | J3: =Time!J$107 -> Pre-Fcst | K3: =Time!K$107 -> Pre-Fcst | L3: =Time!L$107 -> Forecast | M3: =Time!M$107 -> Forecast | N3: =Time!N$107 -> Forecast | O3: =Time!O$107 -> Forecast | P3: =Time!P$107 -> Forecast | Q3: =Time!Q$107 -> Post-Fcst | R3: =Time!R$107 -> Post-Fcst | S3: =Time!S$107 -> Post-Fcst | T3: =Time!T$107 -> Post-Fcst
E4: =Time!E$130 -> Financial year ending | J4: =Time!J$130 -> 2019 | K4: =Time!K$130 -> 2020 | L4: =Time!L$130 -> 2021 | M4: =Time!M$130 -> 2022 | N4: =Time!N$130 -> 2023 | O4: =Time!O$130 -> 2024 | P4: =Time!P$130 -> 2025 | Q4: =Time!Q$130 -> 2026 | R4: =Time!R$130 -> 2027 | S4: =Time!S$130 -> 2028 | T4: =Time!T$130 -> 2029
E5: =Time!E$10 -> Model column counter | F5: Constant | G5: Unit | H5: Total | J5: =Time!J$10 -> 1 | K5: =Time!K$10 -> 2 | L5: =Time!L$10 -> 3 | M5: =Time!M$10 -> 4 | N5: =Time!N$10 -> 5 | O5: =Time!O$10 -> 6 | P5: =Time!P$10 -> 7 | Q5: =Time!Q$10 -> 8 | R5: =Time!R$10 -> 9 | S5: =Time!S$10 -> 10 | T5: =Time!T$10 -> 11
A7: MODEL PERIOD
B9: Model column counter
E10: Model column counter | G10: counter | J10: =I10 + 1 -> 1 | K10: =J10 + 1 -> 2 | L10: =K10 + 1 -> 3 | M10: =L10 + 1 -> 4 | N10: 5 | O10: 6 | P10: =O10 + 1 -> 7 | Q10: =P10 + 1 -> 8 | R10: =Q10 + 1 -> 9 | S10: =R10 + 1 -> 10 | T10: 11
E11: Model column total | F11: =MAX(J10:T10) -> 11 | G11: columns
E13: =E$10 -> Model column counter | F13: 0 | G13: counter | H13: =H$10 -> 0 | I13: 0 | J13: =J$10 -> 1 | K13: 2 | L13: 3 | M13: 4 | N13: 5 | O13: 6 | P13: 7 | Q13: 8 | R13: 9 | S13: 10 | T13: 11
E14: 1st model column flag | G14: flag | H14: =SUM(J14:T14) -> 1 | J14: =IF(J13 = 1, 1, 0) -> 1 | K14: =IF(K13 = 1, 1, 0) -> 0 | L14: 0 | M14: =IF(M13 = 1, 1, 0) -> 0 | N14: =IF(N13 = 1, 1, 0) -> 0 | O14: 0 | P14: =IF(P13 = 1, 1, 0) -> 0 | Q14: =IF(Q13 = 1, 1, 0) -> 0 | R14: =IF(R13 = 1, 1, 0) -> 0 | S14: =IF(S13 = 1, 1, 0) -> 0 | T14: 0
B16: Model period beginning
E17: =InpActive!E12 -> 1st model column start date | F17: =InpActive!F12 -> 2018-04-01 | G17: =InpActive!G12 -> date
E18: =InpActive!E$39 -> Months per model period | F18: =InpActive!F$39 -> 12 | G18: =InpActive!G$39 -> months
E19: =E$14 -> 1st model column flag | F19: 0 | G19: flag | H19: =H$14 -> 1 | I19: 0 | J19: =J$14 -> 1 | K19: 0 | L19: 0 | M19: 0 | N19: 0 | O19: 0 | P19: 0 | Q19: 0 | R19: 0 | S19: 0 | T19: 0
E20: Model period beginning | G20: date | J20: =IF(J19 = 1, $F17, DATE(YEAR(I20), MONTH(I20) + $F18, DAY(1))) -> 2018-04-01 | K20: =IF(K19 = 1, $F17, DATE(YEAR(J20), MONTH(J20) + $F18, DAY(1))) -> 2019-04-01 | L20: =IF(L19 = 1, $F17, DATE(YEAR(K20), MONTH(K20) + $F18, DAY(1))) -> 2020-04-01 | M20: =IF(M19 = 1, $F17, DATE(YEAR(L20), MONTH(L20) + $F18, DAY(1))) -> 2021-04-01 | N20: =IF(N19 = 1, $F17, DATE(YEAR(M20), MONTH(M20) + $F18, DAY(1))) -> 2022-04-01 | O20: 2023-04-01 | P20: =IF(P19 = 1, $F17, DATE(YEAR(O20), MONTH(O20) + $F18, DAY(1))) -> 2024-04-01 | Q20: =IF(Q19 = 1, $F17, DATE(YEAR(P20), MONTH(P20) + $F18, DAY(1))) -> 2025-04-01 | R20: =IF(R19 = 1, $F17, DATE(YEAR(Q20), MONTH(Q20) + $F18, DAY(1))) -> 2026-04-01 | S20: =IF(S19 = 1, $F17, DATE(YEAR(R20), MONTH(R20) + $F18, DAY(1))) -> 2027-04-01 | T20: 2028-04-01
B22: Model period ending
E23: =InpActive!E$39 -> Months per model period | F23: =InpActive!F$39 -> 12 | G23: =InpActive!G$39 -> months
E24: =E$20 -> Model period beginning | F24: 00:00:00 | G24: date | H24: 00:00:00 | I24: 00:00:00 | J24: 2018-04-01 | K24: 2019-04-01 | L24: 2020-04-01 | M24: 2021-04-01 | N24: 2022-04-01 | O24: 2023-04-01 | P24: 2024-04-01 | Q24: 2025-04-01 | R24: 2026-04-01 | S24: 2027-04-01 | T24: 2028-04-01
E25: Model period ending | G25: date | J25: =DATE(YEAR(J24), MONTH(J24) + $F23, DAY(J24) - 1) -> 2019-03-31 | K25: =DATE(YEAR(K24), MONTH(K24) + $F23, DAY(K24) - 1) -> 2020-03-31 | L25: 2021-03-31 | M25: 2022-03-31 | N25: 2023-03-31 | O25: 2024-03-31 | P25: =DATE(YEAR(P24), MONTH(P24) + $F23, DAY(P24) - 1) -> 2025-03-31 | Q25: =DATE(YEAR(Q24), MONTH(Q24) + $F23, DAY(Q24) - 1) -> 2026-03-31 | R25: =DATE(YEAR(R24), MONTH(R24) + $F23, DAY(R24) - 1) -> 2027-03-31 | S25: =DATE(YEAR(S24), MONTH(S24) + $F23, DAY(S24) - 1) -> 2028-03-31 | T25: 2029-03-31
E27: =E$25 -> Model period ending | F27: 00:00:00 | G27: date | H27: 00:00:00 | I27: 00:00:00 | J27: 2019-03-31 | K27: 2020-03-31 | L27: 2021-03-31 | M27: 2022-03-31 | N27: 2023-03-31 | O27: 2024-03-31 | P27: 2025-03-31 | Q27: 2026-03-31 | R27: 2027-03-31 | S27: 2028-03-31 | T27: 2029-03-31
E28: =E$20 -> Model period beginning | F28: 00:00:00 | G28: date | H28: 00:00:00 | I28: 00:00:00 | J28: 2018-04-01 | K28: 2019-04-01 | L28: 2020-04-01 | M28: 2021-04-01 | N28: 2022-04-01 | O28: 2023-04-01 | P28: 2024-04-01 | Q28: 2025-04-01 | R28: 2026-04-01 | S28: 2027-04-01 | T28: 2028-04-01
E29: Days in a year | G29: days | J29: =J27 - J28 + 1 -> 365 | K29: =K27 - K28 + 1 -> 366 | L29: 365 | M29: 365 | N29: 365 | O29: 366 | P29: 365 | Q29: 365 | R29: 365 | S29: =S27 - S28 + 1 -> 366 | T29: 365
A32: FORECAST PERIOD
B34: Forecast start period flag
E35: =InpActive!E$25 -> Forecast start date | F35: =InpActive!F$25 -> 2020-04-01 | G35: =InpActive!G$25 -> date
E36: =E$20 -> Model period beginning | F36: 00:00:00 | G36: date | H36: 00:00:00 | I36: 00:00:00 | J36: 2018-04-01 | K36: 2019-04-01 | L36: 2020-04-01 | M36: 2021-04-01 | N36: 2022-04-01 | O36: 2023-04-01 | P36: 2024-04-01 | Q36: 2025-04-01 | R36: 2026-04-01 | S36: 2027-04-01 | T36: 2028-04-01
E37: =E$25 -> Model period ending | F37: 00:00:00 | G37: date | H37: 00:00:00 | I37: 00:00:00 | J37: 2019-03-31 | K37: 2020-03-31 | L37: 2021-03-31 | M37: 2022-03-31 | N37: 2023-03-31 | O37: 2024-03-31 | P37: 2025-03-31 | Q37: 2026-03-31 | R37: 2027-03-31 | S37: 2028-03-31 | T37: 2029-03-31
E38: Forecast start period flag | G38: flag | H38: =SUM(J38:T38) -> 1 | J38: =IF(AND($F35 >= J36, $F35 <= J37), 1, 0) -> 0 | K38: =IF(AND($F35 >= K36, $F35 <= K37), 1, 0) -> 0 | L38: 1 | M38: 0 | N38: 0 | O38: 0 | P38: =IF(AND($F35 >= P36, $F35 <= P37), 1, 0) -> 0 | Q38: =IF(AND($F35 >= Q36, $F35 <= Q37), 1, 0) -> 0 | R38: =IF(AND($F35 >= R36, $F35 <= R37), 1, 0) -> 0 | S38: =IF(AND($F35 >= S36, $F35 <= S37), 1, 0) -> 0 | T38: 0
B40: Forecast end period flag
E41: =InpActive!E$25 -> Forecast start date | F41: =InpActive!F$25 -> 2020-04-01 | G41: =InpActive!G$25 -> date
E42: =InpActive!E26 -> Forecast duration | F42: =InpActive!F26 -> 5 | G42: =InpActive!G26 -> years
E43: Forecast end date | F43: =DATE(YEAR(F41) + F42, MONTH(F41), DAY(F41) - 1) -> 2025-03-31 | G43: date
E45: =E$43 -> Forecast end date | F45: =F$43 -> 2025-03-31 | G45: =G$43 -> date
E46: =E$20 -> Model period beginning | F46: 00:00:00 | G46: date | H46: 00:00:00 | I46: 00:00:00 | J46: 2018-04-01 | K46: 2019-04-01 | L46: 2020-04-01 | M46: 2021-04-01 | N46: 2022-04-01 | O46: 2023-04-01 | P46: 2024-04-01 | Q46: 2025-04-01 | R46: 2026-04-01 | S46: 2027-04-01 | T46: 2028-04-01
E47: =E$25 -> Model period ending | F47: 00:00:00 | G47: date | H47: 00:00:00 | I47: 00:00:00 | J47: 2019-03-31 | K47: 2020-03-31 | L47: 2021-03-31 | M47: 2022-03-31 | N47: 2023-03-31 | O47: 2024-03-31 | P47: 2025-03-31 | Q47: 2026-03-31 | R47: 2027-03-31 | S47: 2028-03-31 | T47: 2029-03-31
E48: Forecast end period flag | G48: flag | H48: =SUM(J48:T48) -> 1 | J48: =IF(AND($F45 >= J46, $F45 <= J47), 1, 0) -> 0 | K48: =IF(AND($F45 >= K46, $F45 <= K47), 1, 0) -> 0 | L48: =IF(AND($F45 >= L46, $F45 <= L47), 1, 0) -> 0 | M48: =IF(AND($F45 >= M46, $F45 <= M47), 1, 0) -> 0 | N48: 0 | O48: 0 | P48: 1 | Q48: 0 | R48: 0 | S48: =IF(AND($F45 >= S46, $F45 <= S47), 1, 0) -> 0 | T48: 0
B50: Forecast period flag
E51: =E$38 -> Forecast start period flag | F51: =F$38 -> 0 | G51: flag | H51: =H$38 -> 1 | I51: 0 | J51: 0 | K51: 0 | L51: 1 | M51: 0 | N51: 0 | O51: 0 | P51: 0 | Q51: 0 | R51: 0 | S51: 0 | T51: 0
E52: =E$48 -> Forecast end period flag | F52: =F$48 -> 0 | G52: flag | H52: =H$48 -> 1 | I52: 0 | J52: 0 | K52: 0 | L52: 0 | M52: 0 | N52: 0 | O52: 0 | P52: 1 | Q52: 0 | R52: 0 | S52: 0 | T52: 0
E53: Forecast period flag | G53: flag | H53: =SUM(J53:T53) -> 5 | J53: =J51 + I53 - I52 -> 0 | K53: =K51 + J53 - J52 -> 0 | L53: =L51 + K53 - K52 -> 1 | M53: =M51 + L53 - L52 -> 1 | N53: 1 | O53: 1 | P53: =P51 + O53 - O52 -> 1 | Q53: =Q51 + P53 - P52 -> 0 | R53: =R51 + Q53 - Q52 -> 0 | S53: =S51 + R53 - R52 -> 0 | T53: 0
E54: Total number of forecast periods | F54: =SUM(J53:R53) -> 5 | G54: periods
B56: Forecast period counter
E57: =E38 -> Forecast start period flag | F57: =F38 -> 0 | G57: flag | H57: 1 | I57: 0 | J57: 0 | K57: =K38 -> 0 | L57: 1 | M57: 0 | N57: 0 | O57: 0 | P57: 0 | Q57: 0 | R57: 0 | S57: 0 | T57: 0
E58: =E53 -> Forecast period flag | F58: =F53 -> 0 | G58: flag | H58: 5 | I58: 0 | J58: 0 | K58: =K53 -> 0 | L58: 1 | M58: 1 | N58: 1 | O58: 1 | P58: 1 | Q58: 0 | R58: 0 | S58: 0 | T58: 0
E59: =E48 -> Forecast end period flag | F59: =F48 -> 0 | G59: flag | H59: 1 | I59: 0 | J59: =J48 -> 0 | K59: =K48 -> 0 | L59: =L48 -> 0 | M59: 0 | N59: 0 | O59: 0 | P59: 1 | Q59: 0 | R59: 0 | S59: 0 | T59: 0
E60: Forecast period counter | G60: counter | J60: =IF(J57 = 1, 1, I60 + J58 - I59) * J58 -> 0 | K60: =IF(K57 = 1, 1, J60 + K58 - J59) * K58 -> 0 | L60: =IF(L57 = 1, 1, K60 + L58 - K59) * L58 -> 1 | M60: =IF(M57 = 1, 1, L60 + M58 - L59) * M58 -> 2 | N60: =IF(N57 = 1, 1, M60 + N58 - M59) * N58 -> 3 | O60: 4 | P60: 5 | Q60: 0 | R60: 0 | S60: 0 | T60: 0
B62: Pre-forecast period flag
E63: =E$14 -> 1st model column flag | F63: =F$14 -> 0 | G63: flag | H63: 1 | I63: 0 | J63: 1 | K63: 0 | L63: 0 | M63: 0 | N63: 0 | O63: 0 | P63: 0 | Q63: 0 | R63: 0 | S63: 0 | T63: 0
E64: =E$38 -> Forecast start period flag | F64: =F$38 -> 0 | G64: flag | H64: 1 | I64: 0 | J64: 0 | K64: 0 | L64: 1 | M64: 0 | N64: 0 | O64: 0 | P64: 0 | Q64: 0 | R64: 0 | S64: 0 | T64: 0
E65: Pre-forecast period flag | G65: flag | H65: =SUM(J65:T65) -> 2 | J65: =J63 + I65 - J64 -> 1 | K65: =K63 + J65 - K64 -> 1 | L65: =L63 + K65 - L64 -> 0 | M65: =M63 + L65 - M64 -> 0 | N65: 0 | O65: 0 | P65: =P63 + O65 - P64 -> 0 | Q65: =Q63 + P65 - Q64 -> 0 | R65: =R63 + Q65 - R64 -> 0 | S65: =S63 + R65 - S64 -> 0 | T65: 0
E66: Pre-forecast period flag - total | F66: =SUM(J65:T65) -> 2 | G66: periods
E68: =E$38 -> Forecast start period flag | F68: =F$38 -> 0 | G68: flag | H68: 1 | I68: 0 | J68: =J$38 -> 0 | K68: 0 | L68: 1 | M68: 0 | N68: 0 | O68: 0 | P68: 0 | Q68: 0 | R68: 0 | S68: 0 | T68: 0
E69: Last pre-forecast period flag | G69: flag | H69: =SUM(J69:T69) ->  | J69: =K68 -> 0 | K69: =L68 -> 1 | L69: =M68 -> 0 | M69: =N68 -> 0 | N69: 0 | O69: 0 | P69: =Q68 -> 0 | Q69: =R68 -> 0 | R69: =S68 -> 0 | S69: =T68 -> 0 | T69: =#REF! -> 
B71: First post-forecast period flag
E72: =E$48 -> Forecast end period flag | F72: =F$48 -> 0 | G72: flag | H72: 1 | I72: 0 | J72: =J$48 -> 0 | K72: 0 | L72: 0 | M72: 0 | N72: 0 | O72: 0 | P72: 1 | Q72: 0 | R72: 0 | S72: 0 | T72: 0
E73: First post-forecast period flag | G73: flag | H73: =SUM(J73:T73) -> 1 | J73: =I72 -> 0 | K73: =J72 -> 0 | L73: =K72 -> 0 | M73: =L72 -> 0 | N73: 0 | O73: 0 | P73: =O72 -> 0 | Q73: =P72 -> 1 | R73: =Q72 -> 0 | S73: =R72 -> 0 | T73: 0
B75: Post-forecast period flag
E76: =E$73 -> First post-forecast period flag | F76: 0 | G76: flag | H76: 1 | I76: 0 | J76: 0 | K76: 0 | L76: 0 | M76: 0 | N76: 0 | O76: 0 | P76: 0 | Q76: 1 | R76: 0 | S76: 0 | T76: 0
E77: Post-forecast period flag | G77: flag | H77: =SUM(J77:T77) -> 4 | J77: =J76 + I77 -> 0 | K77: =K76 + J77 -> 0 | L77: =L76 + K77 -> 0 | M77: =M76 + L77 -> 0 | N77: 0 | O77: 0 | P77: =P76 + O77 -> 0 | Q77: =Q76 + P77 -> 1 | R77: =R76 + Q77 -> 1 | S77: =S76 + R77 -> 1 | T77: 1
E78: Post-forecast period - total | F78: =SUM(J77:T77) -> 4 | G78: periods
B80: Model period flag
E81: =E$53 -> Forecast period flag | F81: =F$53 -> 0 | G81: flag | H81: 5 | I81: 0 | J81: 0 | K81: 0 | L81: 1 | M81: 1 | N81: 1 | O81: 1 | P81: 1 | Q81: 0 | R81: 0 | S81: 0 | T81: 0
E82: =E$65 -> Pre-forecast period flag | F82: =F$65 -> 0 | G82: flag | H82: 2 | I82: 0 | J82: 1 | K82: 1 | L82: 0 | M82: 0 | N82: 0 | O82: 0 | P82: 0 | Q82: 0 | R82: 0 | S82: 0 | T82: 0
E83: Model period flag | G83: flag | H83: =SUM(J83:T83) -> 7 | J83: =MAX(J81:J82) -> 1 | K83: =MAX(K81:K82) -> 1 | L83: 1 | M83: 1 | N83: 1 | O83: 1 | P83: 1 | Q83: 0 | R83: 0 | S83: =MAX(S81:S82) -> 0 | T83: 0
B85: Forecast year
E86: =E$130 -> Financial year ending | F86: =F$130 -> 0 | G86: year # | H86: 0 | I86: 0 | J86: 2019 | K86: 2020 | L86: 2021 | M86: 2022 | N86: 2023 | O86: 2024 | P86: 2025 | Q86: 2026 | R86: 2027 | S86: 2028 | T86: 2029
E87: =E$38 -> Forecast start period flag | F87: =F$38 -> 0 | G87: flag | H87: 1 | I87: 0 | J87: 0 | K87: 0 | L87: 1 | M87: 0 | N87: 0 | O87: 0 | P87: 0 | Q87: 0 | R87: 0 | S87: 0 | T87: 0
E88: Forecast year 1 | F88: =SUMPRODUCT(J87:T87, J86:T86) -> 2021 | G88: year #
B90: Forecast year
E91: =InpActive!E$29 -> Forecast period reconcilation is profiled from | F91: =InpActive!F$29 -> 3 | G91: =InpActive!G$29 -> year
E92: =E60 -> Forecast period counter | F92: 0 | G92: counter | H92: 0 | I92: 0 | J92: 0 | K92: 0 | L92: 1 | M92: 2 | N92: 3 | O92: 4 | P92: 5 | Q92: 0 | R92: 0 | S92: 0 | T92: 0
E93: Start of adjustment profiling flag | G93: counter | H93: =SUM(J93:T93) -> 3 | J93: =IF(J92 >= $F91, 1, 0) -> 0 | K93: =IF(K92 >= $F91, 1, 0) -> 0 | L93: 0 | M93: 0 | N93: 1 | O93: 1 | P93: 1 | Q93: 0 | R93: 0 | S93: 0 | T93: 0
A95: MODEL TIMELINE
B97: Timeline label
E98: =E$14 -> 1st model column flag | F98: 0 | G98: flag | H98: 1 | I98: 0 | J98: 1 | K98: 0 | L98: 0 | M98: 0 | N98: 0 | O98: 0 | P98: 0 | Q98: 0 | R98: 0 | S98: 0 | T98: 0
E99: =E$38 -> Forecast start period flag | F99: =F$38 -> 0 | G99: flag | H99: 1 | I99: 0 | J99: 0 | K99: 0 | L99: 1 | M99: 0 | N99: 0 | O99: 0 | P99: 0 | Q99: 0 | R99: 0 | S99: 0 | T99: 0
E100: =E$73 -> First post-forecast period flag | F100: 0 | G100: flag | H100: 1 | I100: 0 | J100: 0 | K100: 0 | L100: 0 | M100: 0 | N100: 0 | O100: 0 | P100: 0 | Q100: 1 | R100: 0 | S100: 0 | T100: 0
E101: Timeline label counter | G101: counter | J101: =I101 + SUM(J98:J100) -> 1 | K101: =J101 + SUM(K98:K100) -> 1 | L101: =K101 + SUM(L98:L100) -> 2 | M101: =L101 + SUM(M98:M100) -> 2 | N101: 2 | O101: 2 | P101: =O101 + SUM(P98:P100) -> 2 | Q101: =P101 + SUM(Q98:Q100) -> 3 | R101: =Q101 + SUM(R98:R100) -> 3 | S101: =R101 + SUM(S98:S100) -> 3 | T101: 3
E103: =InpActive!E19 -> Pre - forecast period | F103: =InpActive!F19 -> Pre-Fcst | G103: =InpActive!G19 -> label
E104: =InpActive!E20 -> Forecast period | F104: =InpActive!F20 -> Forecast | G104: =InpActive!G20 -> label
E105: =InpActive!E21 -> Post - forecast period | F105: =InpActive!F21 -> Post-Fcst | G105: =InpActive!G21 -> label
E106: =E$101 -> Timeline label counter | F106: 0 | G106: counter | H106: 0 | I106: 0 | J106: 1 | K106: 1 | L106: 2 | M106: 2 | N106: 2 | O106: 2 | P106: 2 | Q106: 3 | R106: 3 | S106: 3 | T106: 3
E107: Timeline label | G107: label | J107: =INDEX($F103:$F105, J106) -> Pre-Fcst | K107: =INDEX($F103:$F105, K106) -> Pre-Fcst | L107: =INDEX($F103:$F105, L106) -> Forecast | M107: =INDEX($F103:$F105, M106) -> Forecast | N107: =INDEX($F103:$F105, N106) -> Forecast | O107: =INDEX($F103:$F105, O106) -> Forecast | P107: =INDEX($F103:$F105, P106) -> Forecast | Q107: =INDEX($F103:$F105, Q106) -> Post-Fcst | R107: =INDEX($F103:$F105, R106) -> Post-Fcst | S107: =INDEX($F103:$F105, S106) -> Post-Fcst | T107: Post-Fcst
B109: Modelling period check
E110: =E$65 -> Pre-forecast period flag | F110: =F$65 -> 0 | G110: flag | H110: 2 | I110: 0 | J110: 1 | K110: 1 | L110: 0 | M110: 0 | N110: 0 | O110: 0 | P110: 0 | Q110: 0 | R110: 0 | S110: 0 | T110: 0
E111: =E$53 -> Forecast period flag | F111: =F$53 -> 0 | G111: flag | H111: 5 | I111: 0 | J111: 0 | K111: 0 | L111: 1 | M111: 1 | N111: 1 | O111: 1 | P111: 1 | Q111: 0 | R111: 0 | S111: 0 | T111: 0
E112: =E$77 -> Post-forecast period flag | F112: 0 | G112: flag | H112: 4 | I112: 0 | J112: 0 | K112: 0 | L112: 0 | M112: 0 | N112: 0 | O112: 0 | P112: 0 | Q112: 1 | R112: 1 | S112: 1 | T112: 1
E113: No. of overlapping in flags | G113: # | H113: =SUM(J113:T113) -> 0 | J113: =MAX(0, SUM(J110:J112) - 1) -> 0 | K113: =MAX(0, SUM(K110:K112) - 1) -> 0 | L113: =MAX(0, SUM(L110:L112) - 1) -> 0 | M113: =MAX(0, SUM(M110:M112) - 1) -> 0 | N113: =MAX(0, SUM(N110:N112) - 1) -> 0 | O113: 0 | P113: =MAX(0, SUM(P110:P112) - 1) -> 0 | Q113: =MAX(0, SUM(Q110:Q112) - 1) -> 0 | R113: =MAX(0, SUM(R110:R112) - 1) -> 0 | S113: =MAX(0, SUM(S110:S112) - 1) -> 0 | T113: 0
E114: Overlapping in periods - total | F114: =SUM(J113:T113) -> 0 | G114: periods
E116: =E$11 -> Model column total | F116: =F$11 -> 11 | G116: =G$11 -> columns
E117: =E$114 -> Overlapping in periods - total | F117: =F$114 -> 0 | G117: =G$114 -> periods
E118: =E$66 -> Pre-forecast period flag - total | F118: =F$66 -> 2 | G118: =G$66 -> periods
E119: =E$54 -> Total number of forecast periods | F119: =F$54 -> 5 | G119: =G$54 -> periods
E120: =E$78 -> Post-forecast period - total | F120: =F$78 -> 4 | G120: =G$78 -> periods
E121: Modelling period check | F121: =IF(SUM(F116:F117) - SUM(F118:F120) <> 0, 1, 0) -> 0 | G121: check
A124: FINANCIAL YEAR
E126: =InpActive!E15 -> First modelling column financial year # | F126: =InpActive!F15 -> 2019 | G126: =InpActive!G15 -> year #
E127: =InpActive!E16 -> Financial year end month number # | F127: =InpActive!F16 -> 3 | G127: =InpActive!G16 -> month #
E128: =E$25 -> Model period ending | F128: 00:00:00 | G128: date | H128: 00:00:00 | I128: 00:00:00 | J128: 2019-03-31 | K128: 2020-03-31 | L128: 2021-03-31 | M128: 2022-03-31 | N128: 2023-03-31 | O128: 2024-03-31 | P128: 2025-03-31 | Q128: 2026-03-31 | R128: 2027-03-31 | S128: 2028-03-31 | T128: 2029-03-31
E129: =E$14 -> 1st model column flag | F129: 0 | G129: flag | H129: 1 | I129: 0 | J129: 1 | K129: 0 | L129: 0 | M129: 0 | N129: 0 | O129: 0 | P129: 0 | Q129: 0 | R129: 0 | S129: 0 | T129: 0
E130: Financial year ending | G130: year # | J130: =IF(J129 = 1, $F126, IF(J128 > (DATE(I130, $F127 + 1, 1) - 1), I130 + 1, I130)) -> 2019 | K130: =IF(K129 = 1, $F126, IF(K128 > (DATE(J130, $F127 + 1, 1) - 1), J130 + 1, J130)) -> 2020 | L130: =IF(L129 = 1, $F126, IF(L128 > (DATE(K130, $F127 + 1, 1) - 1), K130 + 1, K130)) -> 2021 | M130: =IF(M129 = 1, $F126, IF(M128 > (DATE(L130, $F127 + 1, 1) - 1), L130 + 1, L130)) -> 2022 | N130: 2023 | O130: 2024 | P130: =IF(P129 = 1, $F126, IF(P128 > (DATE(O130, $F127 + 1, 1) - 1), O130 + 1, O130)) -> 2025 | Q130: =IF(Q129 = 1, $F126, IF(Q128 > (DATE(P130, $F127 + 1, 1) - 1), P130 + 1, P130)) -> 2026 | R130: =IF(R129 = 1, $F126, IF(R128 > (DATE(Q130, $F127 + 1, 1) - 1), Q130 + 1, Q130)) -> 2027 | S130: =IF(S129 = 1, $F126, IF(S128 > (DATE(R130, $F127 + 1, 1) - 1), R130 + 1, R130)) -> 2028 | T130: 2029
A133: End of sheet

Sheet WINEP_Inputs
A1: WINEP3 Update March 2019 | H1: National Full data set
AI2: FBG Detail
A3: VERSION 1 | AI3: SSSI/N2K/Ramsar | AN3: Eels | AP3: NERC Driver | AX3: INNS | AZ3: MCZ | BA3: Water Quality Detail | BX3: Water Resource Detail | CH3: Environmental Outcome | CR3: WINEP model inputs
A4: WINEPID | B4: Change Log Winep 2 to 3 | C4: NEW Column. Has an alteration to this measure been made? If Y then please refer to alterations log. | D4: Application in determination by NPS? | E4: Has a permit been issued? | F4: Function | G4: RBD | H4: Area | I4: Water Company | J4: Unique ID * (completed on company collation) | K4: Scheme Name/Name of Investigation/Site Name/Licence name | L4: Name of Waterbody | M4: Waterbody ID | N4: Water Body Type(s) | O4: WFD Operational Catchment | P4: Blank Column | Q4: Blank Column | R4: Blank Column | S4: Driver Code (Primary) | T4: Further Driver Code Information (related to the primary driver if applicable) | U4: Driver Code (Secondary) | V4: Further Driver Code Information (related to the secondary driver if applicable) | W4: Driver Code (Tertiary) | X4: Further Driver Code Information (related to the tertiary driver if applicable) | Y4: Measure Type | Z4: Completion Date (DD/MM/YY) | AA4: Level of Certainty? (P= Purple, R=Red, A=Amber, G=Green | AB4: Abstraction Licence/ Permit, Obstruction ID or No Obstruction ID | AC4: Eastings | AD4: Northings | AE4: Investigation Type | AF4: Investigation Scope | AG4: Implementation Scope | AH4: Groundwater Measures Information | AI4: Name of SSSI (if applicable) | AJ4: Name of N2K/Ramsar site (if applicable) | AK4: SSSI/N2K/Ramsar Unit ID | AL4: SSSI/N2K/Ramsar Area of Unit (Hectares) | AM4: Justification for Action/Investigation | AN4: Eel Priority Status | AO4: Eel Improvement Type | AP4: Primary Type of Priority Habitat Created or Restored/Improved | AQ4: Secondary Type of Priority Habitat Created or Restored/Improved | AR4: Other Priority Habitat Created or Restored/Improved | AS4: Type of Action Taken | AT4: Units Recorded (Hectare or km) | AU4: Number of Hectares or Kms | AV4: Name of Priority Species | AW4: Name of High Risk of Extinction Species | AX4: INNS Control Measure | AY4: INNS Species (if applicable) | AZ4: Name of MCZ | BA4: Name of Bathing Water (where applicable) | BB4: Name of Shellfish Water (where applicable) | BC4: Chemical of Interest (for chemicals measures only) | BD4: Groundwater Chemicals | BE4: Drinking Water Inspectorate - Undertaking or Notice Y/N | BF4: DrWPA Substances at Risk (if applicable) | BG4: Safeguard Zone Name (if applicable) | BH4: Safeguard Zone ID (if applicable) | BI4: Population Equivalent for STWs | BJ4: Current Permit Limit (mg/l) | BK4: Proposed Permit Limit (mg/l) | BL4: Proposed Iron or Aluminium Limits (for Phosphorus measures only) | BM4: Current DWF (m3/d) | BN4: Proposed DWF (m3/d) (if applicable) | BO4: Proposed Permit Limit Other | BP4: Catchment Measure Actions | BQ4: Unsustainable Abstraction System Code | BR4: Linked Groundwater Body Name | BS4: Linked Groundwater Body ID | BT4: Licence Category | BU4: Water Resource Zone (WRZ) | BV4: WR HMWB Flag (X) | BW4: Scheme Relates to Following Missing Mitigation Measures (HMWB only) | BX4: Annual Licence Volume (Ml/a) | BY4: Daily Licence Volume (Ml/d) | BZ4: Aggregate Licence (x) | CA4: Sustainability Change (to Annual Licence Volume) Ml/a | CB4: Sustainability Change (to Daily Licence Volume) Ml/d | CC4: Sustainability Change (to HoF Condition) Ml/d | CD4: *NEW* Water returned to the environment (Reduction in actual abstraction) ML/d | CE4: New Annual Licence Volume (Ml/a) | CF4: New Daily Licence Volume (Ml/d) | CG4: New HoF Condition (Ml/d) | CH4: Quantitative Km River Length Improved or Protected | CI4: Quantitative Area (km2) Improved or Protected | CJ4: Volume (Ml/yr) Drinking Water Protected | CK4: Hectares of Designated Site (HD/RAMSAR/ SSSI) Restored or Improved | CL4: *NEW* INNS ,No Det outcome - Km2 of land with reduced risk of INNS | CM4: Delivers Additional FCERM Benefits (Y/N) | CN4: Delivers on Salmon 5-Point Action Plan | CO4: Additional Comments | CP4: CPS Reference | CQ4: Flow Categorisation 1= PR19 Synergy 2= WFD failure 3= Neither | CR4: Allowed totex unit rate | CS4: Quantity proposed in PR19 FD | CT4: Quantity Delivered | CU4: 1 = In PR19, funded 0 = In PR19, not funded | CV4: Price Control | CW4: Unit | CX4: Unit Conversion to £m | CY4: Changes made by company July 23 - please add comments on any changes
A5: EAN00324 | B5: Changed | C5: Yes – alteration made | F5: WR | G5: Anglian | H5: East Anglia | I5: Essex & Suffolk Water | J5: 7ES100130 | K5: LANGHAM A, B, C & E | L5: River Brett catchment | M5: GB105036040930 | N5: River | O5: Stour OC | S5: WFD_IMP_WRFlow | Y5: Sustainability Change | Z5: 2024-12-22 | AA5: Amber | AB5: 8/36/15/*G/0092 | AC5: 602526 | AD5: 234430 | AG5: The Investigation and options appraisal is due to finish 31/3/2021 - this will inform the licence and non licence changes required. The sustainability change listed in this WINEP is unconfirmed and comes from groundwater modelling completed 2018. | BR5: North Essex Chalk | BT5: CAT 1 | BU5: South Essex | BV5: X | BX5: No Annual on licence. | BY5: 22.73 | BZ5: X | CA5: No change | CB5: Reduction of 4.5Ml/d | CC5: N/A | CE5: No Annual on licence | CF5: New daily of 18.23Ml/d | CG5: N/A | CO5: This is part of the River Brett Scheme, which is a project involving Essex and Suffolk Water, Affinity Water and Anglian Water, in order to find joint solutions. The extent of this licence change for ESW is uncertain, but is likely a licence change will be required. A 4.5ML/d reduction represents the worst case scenario and is based on recent actual abstraction and the flows required in the outflow of the River Brett to meet the EFI. This Implementation line represents the licence and any non-licence changes (environmental improvements to the river) which will need to be in place so the River Brett waterbody reaches good Ecological Potential in 2027. Therefore this licence change and other catchment measures need to be completed by 2024. An Investigation and Options Apprasial has to be completed first by 31/3/2021 and this is shown as a seperate line in this WINEP. | CR5: 0 | CS5: 1 | CT5: 1 | CU5: 1
A6: EAN00401 | B6: Changed | F6: FBG | G6: Anglian | H6: East Anglia | I6: Essex & Suffolk Water | J6: 7ES200010 | K6: Eel measures at Ormesby Broad | L6: Ormesby Broad | M6: GB30547009 | N6: Lake | O6: Bure | S6: EE_IMP | T6: Other | Y6: Eel Screen | Z6: 2025-03-31 | AA6: Amber | AB6: 7/34/09/*S/0054 | AC6: 646663 | AD6: 315512 | AG6: Cost beneficial screening | AN6: High Priority | AO6: Both | CH6: 9 | CI6: 1.59 | CO6: Investigation completed, screening to be implemented with programme of works | CR6: 0 | CS6: 1 | CT6: 1 | CU6: 1 | CV6: WR | CW6: £ million | CX6: 1
A7: NEA00013 | B7: Changed | F7: WQ | G7: Northumbria | H7: North East | I7: Northumbrian Water | J7: 7NW200012 | K7: Aldin Grange | L7: Browney from Deerness confl to Wear | M7: GB103024077552 | N7: River | O7: Browney | S7: WFD_IMPg | T7: Phosphorus | Y7: Continuous Discharge | Z7: 2024-12-22 | AA7: Amber | AB7: 244/0991 | AC7: 424900 | AD7: 543190 | BI7: 2152 | BK7: 0.7 | BL7: Iron 4000 ug/l (95%ile) 8000 ug/l (UT) | BM7: 576 | BN7: 576 | CH7: 3.4 | CO7: Catchment solution for Browney | CR7: 3.126 | CS7: 1 | CT7: 1 | CU7: 1 | CV7: WWN+ | CW7: £ million | CX7: 1
A8: NEA00702 | F8: WR | G8: Northumbria | H8: North East | I8: Northumbrian Water | J8: 7NW100001 | K8: Balder - d/s Hury Resvoir dam wall - - continue AMP 6 adaptive management trial putting seasonality to compensation release then implement end of AMP 7 - MM5, MM2, MM7 and MM8 | L8: Balder Catchment (trib of Tees) | M8: GB103025072240 | N8: River | O8: Tees Upper | S8: WFD_IMP_WRHMWB | T8: n/a | Y8: Adaptive Management | Z8: 2024-12-22 | AA8: Amber | AB8: 1/25/01/001 | AC8: 396700 | AD8: 519500 | AF8: continue AMP6, trial MM5 putting seasonality to compensation release, plus MM2, MM7 and MM8 with a view to implementimng end AMP 7 | AN8: No | BU8: Kielder | BV8: x | BW8: 2,5,7, 8 | BX8: 53098.391 | BY8: 145.475 | BZ8: x | CB8: 4.3 | CH8: 5.4 | CN8: Recovering Salmon River | CO8: Adman trial started AMP6, implement the outcomes. Need to account and include for monitoring Col BY/ Sust Change is for if scheme at IMP stage, not reducing the licence but is worst case impact of adopting UKTAG building block flows and is subject to Aquator modelling as part of Options Appraisal report | CP8: http://environment.data.gov.uk/catchment-planning/WaterBody/GB103025072240 | CR8: 0.083 | CS8: 1 | CT8: 1 | CU8: 1 | CV8: WR | CW8: £ million | CX8: 1
A9: NEA00703 | F9: WR | G9: Northumbria | H9: North East | I9: Northumbrian Water | J9: 7NW10005 | K9: Barrasford raw water pumping station - Rede to Gunnerton Burn, Barrasford to S Tyne, Watersmeet to Tidal Limit - Eels Regs and MM3 | L9: N Tyne from Barrasford to S Tyne confluence | M9: GB103023075802 | N9: River | O9: North Tyne Lower | S9: EE_IMP | Y9: Eel Screen | Z9: 2024-12-22 | AA9: Amber | AB9: 1/23/01/159 | AC9: 392280 | AD9: 572900 | AG9: Eel screens on raw water abstraction | AN9: Medium Priority | AO9: Screen | BV9: x | BX9: 21900 | BY9: 60 | BZ9: x | CM9: No | CN9: Pricipal Salmon River | CO9: Also applies under HMWB MM3 entrainment.The main work will be carried out on GB103023074920 waterbody which is linked to the abstraction licence but further outcomes will be seen at these waterbodies GB103023075802, GB103023075801. Covering North Tyne Lower & Tyne Upper. These EE_IMP lines have been grouped as it was one structure that would have outcomes on three waterbodies. | CP9: http://environment.data.gov.uk/catchment-planning/WaterBody/GB103023074920 | CR9: 1.071 | CS9: 1 | CT9: 0 | CU9: 1 | CV9: WR | CW9: £ million | CX9: 1 | CY9: Agreed late delivery 2025/26 | CZ9: =+K9 -> Barrasford raw water pumping station - Rede to Gunnerton Burn, Barrasford to S Tyne, Watersmeet to Tidal Limit - Eels Regs and MM3
A10: NEA00047 | B10: Changed | F10: WQ | G10: Northumbria | H10: North East | I10: Northumbrian Water | J10: 7NW200044 | K10: Bishop Middleham | L10: Skerne from Carrs to Woodham Burn | M10: GB103025072430 | N10: River | O10: Skerne | S10: WFD_IMPg | T10: Phosphorus | Y10: Continuous Discharge | Z10: 2024-12-22 | AA10: Amber | AB10: 25/03/1221 | AC10: 432710 | AD10: 530300 | BI10: 1168 | BK10: 1 | BL10: Iron 4000 ug/l (95%ile) 8000 ug/l (UT) | BM10: 274 | BN10: 274 | CH10: 6.1 | CO10: Possible northumbria integrated drainage plans | CR10: 1.895 | CS10: 1 | CT10: 1 | CU10: 1 | CV10: WWN+ | CW10: £ million | CX10: 1
A11: NEA00706 | F11: WR | G11: Northumbria | H11: North East | I11: Northumbrian Water | J11: 7NW10088 | K11: BLACK BURN catchwater, feeds into Burnhope Burn d/s of Catchwater . 100% take. MM5, MM7 | L11: Burnhope Burn from Source to River Derwent | M11: GB103023074760 | N11: River | O11: Derwent Tyne | S11: WFD_IMP_WRHMWB | Y11: Sustainability Change | Z11: 2024-12-22 | AA11: Amber | AB11: 1/23/04/001 | AF11: BLACK BURN catchwater, feeds into Burnhope Burn d/s of Catchwater . 100% take. MM5, MM6 | AN11: No | BT11: CAT 4 | BU11: Kielder | BV11: x | BW11: 5,7,8 | CB11: 1.4 | CH11: 0.34 | CM11: No | CO11: No control on current structure - should not rule out need for control on any future structure if deemed significant. The available resource of the Black Burn was assessed as 0.3mgd (1.4Mld). The value in BY/ Sust change is therefore the worse case, assuming the structure is removed. Will need to include env monitoring | CP11: http://environment.data.gov.uk/catchment-planning/WaterBody/GB103023074760 | CR11: 0.133 | CS11: 1 | CT11: 1 | CU11: 1 | CV11: WR | CW11: £ million | CX11: 1
A12: NEA00054 | B12: Changed | F12: WQ | G12: Northumbria | H12: North East | I12: Northumbrian Water | J12: 7NW200051 | K12: Bowburn | L12: Croxdale Beck from Source to Wear | M12: GB103024077410 | N12: River | O12: Wear Lower and Estuary | S12: WFD_IMPm | T12: Phosphorus | Y12: Continuous Discharge | Z12: 2024-12-22 | AA12: Amber | AB12: 243/0970 | AC12: 430090 | AD12: 536978, | BI12: 9150 | BJ12: 2 | BK12: 0.25 | BL12: Iron 4000 ug/l (95%ile) 8000 ug/l (UT) | BM12: 2618 | BN12: 2618 | CH12: 5.6 | CO12: Possible northumbria integrated drainage plans | CR12: 0 | CS12: 1 | CT12: 1 | CU12: 1 | CV12: WWN+ | CW12: £ million | CX12: 1
A13: NEA00060 | B13: Changed | F13: WQ | G13: Northumbria | H13: North East | I13: Northumbrian Water | J13: 7NW200057 | K13: Browney | L13: Browney from Deerness confl to Wear | M13: GB103024077552 | N13: River | O13: Browney | S13: WFD_IMPm | T13: Phosphorus | Y13: Continuous Discharge | Z13: 2024-12-22 | AA13: Amber | AB13: 244/0974 | AC13: 425870 | AD13: 538500 | BI13: 20631 | BJ13: 2 | BK13: 1 | BL13: Iron 4000 ug/l (95%ile) 8000 ug/l (UT) | BM13: 4676 | BN13: 4676 | CH13: 2.4 | CR13: 0.14 | CS13: 1 | CT13: 1 | CU13: 1 | CV13: WWN+ | CW13: £ million | CX13: 1
A14: NEA00707 | F14: WR | G14: Northumbria | H14: North East | I14: Northumbrian Water | J14: 7NW10009 | K14: Burnhope Burn catchwater to River Derwent MM1 and MM2 , MM5, MM7 | L14: Burnhope Burn from Source to River Derwent | M14: Gb103023074760 | N14: River | O14: Derwent Tyne | S14: WFD_IMP_WRHMWB | Y14: Sustainability Change | Z14: 2024-12-22 | AA14: Amber | AB14: 1/23/04/001 | AC14: 400720 | AD14: 549200 | AF14: Implement PR6 Options Appraisal for Burnhope Burn catchwater to River Derwent MM1 and MM2 , MM5, MM6 | AN14: No | BU14: Kielder | BV14: x | BW14: 2,5,7,8 | BX14: 50006 | BY14: 137.003 | BZ14: x | CB14: 16.8 | CH14: 34.3 | CM14: No | CN14: Recovering Salmon River | CO14: No control on current structure - should not rule out need for control on any future structure if deemed significant. The catchwater (including the Black Burn - row 32) was designed to increase yield of Derwent reservoir by 4mgd (18.2Mld). The value in BY/ sust change is therefore the worse case, assuming the structure is removed. Although main River Tyne is a principal Salmon river, this is part of the River Derwent system , which is just beginning to recover salmon stocks Will need to include monitoring | CP14: http://environment.data.gov.uk/catchment-planning/WaterBody/GB103023074760 | CR14: 0.243 | CS14: 1 | CT14: 1 | CU14: 1 | CV14: WR | CW14: £ million | CX14: 1
A15: NEA00068 | B15: Changed | F15: WQ | G15: Northumbria | H15: North East | I15: Northumbrian Water | J15: 7NW200065 | K15: Carlton Redmarshall | L15: Billingham Beck from Bishopton Bck to Brierle | M15: GB103025072360 | N15: River | O15: Tees Lower and Estuary | S15: WFD_IMPg | T15: Phosphorus | Y15: Continuous Discharge | Z15: 2024-12-22 | AA15: Amber | AB15: 25/04/1706 | AC15: 438480 | AD15: 522230 | BI15: 2641 | BK15: 0.4 | BL15: Iron 4000 ug/l (95%ile) 8000 ug/l (UT) | BM15: 685 | BN15: 685 | CH15: 5.2 | CR15: 3.185 | CS15: 1 | CT15: 1 | CU15: 1 | CV15: WWN+ | CW15: £ million | CX15: 1
A16: NEA00070 | B16: Changed | F16: WQ | G16: Northumbria | H16: North East | I16: Northumbrian Water | J16: 7NW200067 | K16: Chilton Lane | L16: Carrs from Source to Skerne | M16: GB103025072520 | N16: River | O16: Skerne | S16: WFD_IMPg | T16: Phosphorus | Y16: Continuous Discharge | Z16: 2024-12-22 | AA16: Amber | AB16: 25/03/1218 | AC16: 431080 | AD16: 530350 | BI16: 3274 | BK16: 0.25 | BL16: Iron 4000 ug/l (95%ile) 8000 ug/l (UT) | BM16: 1182 | BN16: 1182 | CH16: 2.1 | CO16: Preferred solution would be WFD_IMPg, if affordability is unfavourable the no deterioration limit will apply. | CR16: 3.226 | CS16: 1 | CT16: 1 | CU16: 1 | CV16: WWN+ | CW16: £ million | CX16: 1
A17: NEA00074 | B17: Changed | F17: WQ | G17: Northumbria | H17: North East | I17: Northumbrian Water | J17: 7NW200071 | K17: Crookhall | L17: Smallhope Burn from Source to Browney, Stocke | M17: GB103024077330 | N17: River | O17: Browney | S17: WFD_IMPp | T17: Phosphorus | Y17: Continuous Discharge | Z17: 2024-12-22 | AA17: Amber | AB17: 244/1006 | AC17: 412560 | AD17: 550430 | AJ17: 1410 | AK17: 1410 | AS17: Refer to Salmon five point 4.2. http://www.salmon-trout.org/uploads/51bd4785e29c624c82a196553963da7d.pdf | BI17: 4869 | BK17: 0.9 | BL17: Iron 3000 ug/l (95%ile) 8000 ug/l (UT) | BM17: 1410 | BN17: 1410 | CH17: 4 | CR17: 1.385 | CS17: 1 | CT17: 1 | CU17: 1 | CV17: WWN+ | CW17: £ million | CX17: 1
A18: NEA00081 | B18: Changed | F18: WQ | G18: Northumbria | H18: North East | I18: Northumbrian Water | J18: 7NW200078 | K18: Dipton | L18: Pont Burn Catchment (trib of Derwent) | M18: GB103023074780 | N18: River | O18: Derwent Tyne | S18: WFD_IMPp | T18: Phosphorus | Y18: Continuous Discharge | Z18: 2024-12-22 | AA18: Amber | AB18: 234/A/0656 | AC18: 415800 | AD18: 554400 | BI18: 2829 | BK18: 1 | BL18: Iron 3000 ug/l (95%ile) 8000 ug/l (UT) | BM18: 780 | BN18: 780 | CH18: 3.5 | CR18: 1.962 | CS18: 1 | CT18: 1 | CU18: 1 | CV18: WWN+ | CW18: £ million | CX18: 1
A19: NEA00089 | B19: Changed | F19: WQ | G19: Northumbria | H19: North East | I19: Northumbrian Water | J19: 7NW200086 | K19: Esh Winning | L19: Deerness from Hedleyhope Burn to Browney | M19: GB103024077280 | N19: River | O19: Browney | S19: WFD_IMPm | T19: Phosphorus | Y19: Continuous Discharge | Z19: 2024-12-22 | AA19: Amber | AB19: 244/1026 | AC19: 420157 | AD19: 542222 | BI19: 4729 | BK19: 0.6 | BL19: Iron 4000 ug/l (95%ile) 8000 ug/l (UT) | BM19: 1410 | BN19: 1410 | CH19: 6 | CO19: Required as part of Browney catchment solution. FAS:Highway and rural surface water run-off issues exposed in 2012 flood event. Works at Pringle Place (New Brancepeth) mainly relate to additional highway drainage. Works in Ushaw Moor are mainly a culvert upsizing to ease rural runoff backing up. Best Option to be determined following outcome of study (i.e. SUDS). | CR19: 0 | CS19: 1 | CT19: 1 | CU19: 1 | CV19: WWN+ | CW19: £ million | CX19: 1
A20: NEA00093 | B20: Changed | F20: WQ | G20: Northumbria | H20: North East | I20: Northumbrian Water | J20: 7NW200089 | K20: Fishburn | L20: Skerne from Source to Carrs | M20: GB103025076070 | N20: River | O20: Skerne | S20: WFD_IMPg | T20: Phosphorus | Y20: Continuous Discharge | Z20: 2024-12-22 | AA20: Amber | AB20: 25/03/1234 | AC20: 435580 | AD20: 531780 | BI20: 2723 | BK20: 0.3 | BL20: Iron 4000 ug/l (95%ile) 8000 ug/l (UT) | BM20: 1007 | BN20: 1007 | CH20: 3.3 | CN20: Other | CO20: Possible northumbria integrated drainage plans. Preferred solution would be WFD_IMPg, if affordability is unfavourable the no deterioration limit will apply. | CR20: 2.403 | CS20: 1 | CT20: 1 | CU20: 1 | CV20: WWN+ | CW20: £ million | CX20: 1
A21: NEA00710 | F21: WR | G21: Northumbria | H21: North East | I21: Northumbrian Water | J21: 7NW100011 | K21: Harthope burn catchwater - Water supply asset - MM1 and MM7 | L21: Wear from Wearhead to Middlehope Burn, Iresho | M21: GB103024077440 | N21: River | O21: Wear Upper | S21: WFD_IMP_WRHMWB | Y21: Fish Passage | Z21: 2024-12-22 | AA21: Amber | AB21: - | AC21: 386981 | AD21: 536817 | AF21: Harthope beck catchwater - Water supply asset - MM1 and MM6 | AN21: No | BU21: Kielder | BV21: x | BW21: 1,8 | BX21: - | BY21: - | BZ21: - | CH21: 4.25 | CM21: No | CO21: Scheme name changed from Harthope Beck to Harthope Burn to avoid misunderstanding about location (Harthope beck is a WFD WB elsewhere). | CP21: http://environment.data.gov.uk/catchment-planning/WaterBody/GB103024077440 | CR21: 0.176 | CS21: 1 | CT21: 1 | CU21: 1 | CV21: WR | CW21: £ million | CX21: 1
A22: NEA00115 | B22: Changed | F22: WQ | G22: Northumbria | H22: North East | I22: Northumbrian Water | J22: 7NW200110 | K22: Hustledown STW (CIP2 T1) | L22: Twizell Burn from Source to Cong Burn | M22: GB103024077590 | N22: River | O22: Wear Lower and Estuary | S22: WFD_IMP_CHEM | Y22: Continuous Discharge | Z22: 2024-12-31 | AA22: Amber | AB22: 245/1247 | AC22: 421200 | AD22: 551600 | BC22: Zinc (dissolved) | BK22: 41 ug/l (mean) | CH22: 5.5 | CR22: 4.505 | CS22: 1 | CT22: 1 | CU22: 1 | CV22: WWN+ | CW22: £ million | CX22: 1
A23: NEA00117 | B23: Changed | F23: WQ | G23: Northumbria | H23: North East | I23: Northumbrian Water | J23: 7NW200112 | K23: Hustledown STW (CIP2 T1) | L23: Twizell Burn from Source to Cong Burn | M23: GB103024077590 | N23: River | O23: Wear Lower and Estuary | S23: WFD_IMP_CHEM | Y23: Continuous Discharge | Z23: 31/12/2024 | AA23: Amber | AB23: 245/1247 | AC23: 421200 | AD23: 551600 | BC23: Iron (total) | BK23: 2.1 mg/l (95%) 5.3 mg/l (UT) | CH23: 5.5 | CR23: 0 | CS23: 1 | CT23: 1 | CU23: 1 | CV23: WWN+ | CW23: £ million | CX23: 1
A24: NEA00711 | F24: WR | G24: Northumbria | H24: North East | I24: Northumbrian Water | J24: 7NW100013 | K24: Ireshope - Wham pasture MM1. MM7 Burnhope res supply | L24: Ireshope Burn | M24: GB103024077441 | N24: River | O24: Wear Upper | S24: WFD_IMP_WRHMWB | Y24: Fish Passage | Z24: 2024-12-22 | AA24: Amber | AB24: - | AC24: 384872 | AD24: 537169 | AF24: Ireshope - Wham pasture MM1. MM7 Burnhope res supply | AN24: No | BU24: Kielder | BV24: x | BW24: 1,7 | BX24: - | BY24: - | BZ24: - | CH24: 15.1 | CM24: No | CN24: Pricipal Salmon River | CP24: http://environment.data.gov.uk/catchment-planning/WaterBody/GB103024077441 | CR24: 0.176 | CS24: 1 | CT24: 1 | CU24: 1 | CV24: WR | CW24: £ million | CX24: 1
A25: NEA00712 | F25: WR | G25: Northumbria | H25: North East | I25: Northumbrian Water | J25: 7NW100014 | K25: Ireshope Burn - Greenwell Crags - MM1, MM7 Burnhope res supply | L25: Ireshope Burn | M25: GB103024077441 | N25: River | O25: Wear Upper | S25: WFD_IMP_WRHMWB | Y25: Fish Passage | Z25: 2024-12-22 | AA25: Amber | AB25: - | AC25: 385680 | AD25: 538015 | AF25: Ireshope Burn - Greenwell Crags - MM1, MM7 Burnhope res supply | AN25: No | BU25: Kielder | BV25: x | BW25: 1,7 | BX25: - | BY25: - | BZ25: - | CH25: 1.35 | CM25: No | CN25: Pricipal Salmon River | CP25: http://environment.data.gov.uk/catchment-planning/WaterBody/GB103024077441 | CR25: 0.176 | CS25: 1 | CT25: 1 | CU25: 1 | CV25: WR | CW25: £ million | CX25: 1
A26: NEA00466 | B26: Changed | F26: WQ | G26: Northumbria | H26: North East | I26: Northumbrian Water | J26: 7NW200461 | K26: Kelloe | L26: Croxdale Beck from Source to Wear | M26: GB103024077410 | N26: River | O26: Wear Lower and Estuary | S26: WFD_IMPg | T26: Phosphorus | Y26: Continuous Discharge | Z26: 2024-12-22 | AA26: Amber | AB26: 243/0965 | AC26: 433830 | AD26: 535890 | BI26: 2186 | BK26: 0.3 | BL26: Iron 4000 ug/l (95%ile) 8000 ug/l (UT) | BM26: 526 | BN26: 526 | CH26: 6.9 | CO26: Possible northumbria integrated drainage plans | CR26: 2.169 | CS26: 1 | CT26: 1 | CU26: 1 | CV26: WWN+ | CW26: £ million | CX26: 1
A27: NEA00468 | B27: Changed | F27: WQ | G27: Northumbria | H27: North East | I27: Northumbrian Water | J27: 7NW200463 | K27: Kirklevington STW | L27: Saltergill Beck Catchment (trib of Tees) | M27: GB103025072050 | N27: River | O27: Tees Lower and Estuary | S27: WFD_IMPg | T27: Phosphorus | Y27: Continuous Discharge | Z27: 2024-12-22 | AA27: Amber | AB27: 25/04/1773 | AC27: 442720 | AD27: 510310 | BI27: 1497 | BK27: 0.3 | BL27: Iron 4000 ug/l (95%ile) 8000 ug/l (UT) | BM27: 299 | BN27: 299 | CH27: 5.3 | CR27: 3.102 | CS27: 1 | CT27: 1 | CU27: 1 | CV27: WWN+ | CW27: £ million | CX27: 1
A28: NEA00469 | B28: Changed | F28: WQ | G28: Northumbria | H28: North East | I28: Northumbrian Water | J28: 7NW200464 | K28: Knitsley | L28: Smallhope Burn from Source to Browney, Stocke | M28: GB103024077330 | N28: River | O28: Browney | S28: WFD_IMPm | T28: Phosphorus | Y28: Continuous Discharge | Z28: 2024-12-22 | AA28: Amber | AB28: 244/1028 | AC28: 412440 | AD28: 548120 | BI28: 5460 | BK28: 0.3 | BL28: Iron 4000 ug/l (95%ile) 8000 ug/l (UT) | BM28: 1472 | BN28: 1472 | CH28: 3.1 | CO28: Catchment solution for the Browney catchment. Preferred solution would be WFD_IMPg, if affordability is unfavourable the no deterioration limit will apply. | CR28: 3.622 | CS28: 1 | CT28: 1 | CU28: 1 | CV28: WWN+ | CW28: £ million | CX28: 1
A29: NEA00470 | B29: Changed | F29: WQ | G29: Northumbria | H29: North East | I29: Northumbrian Water | J29: 7NW200465 | K29: Lanchester | L29: Smallhope Burn from Source to Browney, Stocke | M29: GB103024077330 | N29: River | O29: Browney | S29: WFD_IMPm | T29: Phosphorus | Y29: Continuous Discharge | Z29: 2024-12-22 | AA29: Amber | AB29: 244/0986 | AC29: 417350 | AD29: 546570 | BI29: 5447 | BK29: 0.7 | BL29: Iron 4000 ug/l (95%ile) 8000 ug/l (UT) | BM29: 1261 | BN29: 1261 | CH29: 8 | CR29: 4.325 | CS29: 1 | CT29: 1 | CU29: 1 | CV29: WWN+ | CW29: £ million | CX29: 1
A30: NEA00477 | B30: Changed | F30: WQ | G30: Northumbria | H30: North East | I30: Northumbrian Water | J30: 7NW200472 | K30: Longnewton | L30: Lustrum Beck Catchment (trib of Tees) | M30: GB103025072550 | N30: River | O30: Tees Lower and Estuary | S30: WFD_IMPg | T30: Phosphorus | Y30: Continuous Discharge | Z30: 2024-12-22 | AA30: Amber | AB30: 254/1940 | AC30: 439010 | AD30: 516640 | BI30: 732 | BK30: 0.3 | BL30: Iron 4000 ug/l (95%ile) 8000 ug/l (UT) | BM30: 184 | BN30: 184 | CH30: 12 | CO30: Possible northumbria integrated drainage plans. FAS:Portrack Industrial Estates | CR30: 3.06 | CS30: 1 | CT30: 1 | CU30: 1 | CV30: WWN+ | CW30: £ million | CX30: 1
A31: NEA00713 | F31: WR | G31: Northumbria | H31: North East | I31: Northumbrian Water | J31: 7NW100002 | K31: Lune - Grassholme Res Dam wall - continue AMP 6 adaptive management trial putting seasonality to compensation release then implement end of AMP 7 - MM5, MM2, MM7 amd MM8 | L31: Lune from Selset Reservoir to the River Tees | M31: GB103025072330 | N31: River | O31: Tees Upper | S31: WFD_IMP_WRHMWB | T31: n/a | Y31: Adaptive Management | Z31: 2024-12-22 | AA31: Amber | AB31: 1/25/01/001 | AC31: 394700 | AD31: 522900 | AF31: continue AMP6, trial MM5 putting seasonality to compensation release, plus MM2, MM7 and MM8 with a view to implementimng end AMP 7 | AN31: No | BU31: Kielder | BV31: x | BW31: 2,5,7, 9 | BX31: 53098.391 | BY31: 145.475 | BZ31: x | CB31: 18.6 | CH31: 3.5 | CN31: Recovering Salmon River | CO31: Adman trial started AMP6, implement the outcomes. Need to account and include for monitoring Col BY/ Sust Change is for if scheme at IMP stage, not reducing the licence but is worst case impact of adopting UKTAG building block flows and is subject to Aquator modelling as part of Options Appraisal report | CP31: http://environment.data.gov.uk/catchment-planning/WaterBody/GB103025072330 | CR31: 0.083 | CS31: 1 | CT31: 1 | CU31: 1 | CV31: WR | CW31: £ million | CX31: 1
A32: NEA00499 | B32: Changed | F32: WQ | G32: Northumbria | H32: North East | I32: Northumbrian Water | J32: 7NW200494 | K32: New Moors | L32: Hummer Beck from Source to Gaunless | M32: GB103024072680 | N32: River | O32: Gaunless | S32: WFD_IMPm | T32: Phosphorus | Y32: Continuous Discharge | Z32: 2024-12-22 | AA32: Amber | AB32: 242/A/0706 | AC32: 416948 | AD32: 524152 | BI32: 743 | BK32: 0.4 | BL32: Iron 4000 ug/l (95%ile) 8000 ug/l (UT) | BM32: 263 | BN32: 263 | CH32: 3.5 | CO32: Preferred solution would be WFD_IMPm, if affordability is unfavourable the no deterioration limit will apply. | CR32: 3.551 | CS32: 1 | CT32: 1 | CU32: 1 | CV32: WWN+ | CW32: £ million | CX32: 1
A33: NEA00512 | B33: Changed | F33: WQ | G33: Northumbria | H33: North East | I33: Northumbrian Water | J33: 7NW200507 | K33: Pittington | L33: Old Durham Beck from Chapman Beck to Wear | M33: GB103024077470 | N33: River | O33: Wear Lower and Estuary | S33: WFD_IMPg | T33: Phosphorus | Y33: Continuous Discharge | Z33: 2024-12-22 | AA33: Amber | AB33: 245/0842 | AC33: 433228 | AD33: 543765 | BI33: 1542 | BK33: 0.6 | BL33: Iron 4000 ug/l (95%ile) 8000 ug/l (UT) | BM33: 297 | BN33: 297 | CH33: 4.8 | CR33: 3.102 | CS33: 1 | CT33: 1 | CU33: 1 | CV33: WWN+ | CW33: £ million | CX33: 1 | CY33: Name change to Sherburn STW
A34: NEA00513 | B34: Changed | F34: WQ | G34: Northumbria | H34: North East | I34: Northumbrian Water | J34: 7NW200508 | K34: Pity Me | L34: Blackdene Burn to confluence with Wear | M34: GB103024077622 | N34: River | O34: Wear Lower and Estuary | S34: WFD_IMPm | T34: Phosphorus | Y34: Continuous Discharge | Z34: 2024-12-22 | AA34: Amber | AB34: 245/1274 | AC34: 426300 | AD34: 545940 | BI34: 1284 | BK34: 0.3 | BL34: Iron 4000 ug/l (95%ile) 8000 ug/l (UT) | BM34: 421 | BN34: 421 | CH34: 2 | CO34: Coal Authority planned removal of minewater point source discharge. FAS:Hillmeads, Nettlesworth | CR34: 3.995 | CS34: 1 | CT34: 1 | CU34: 1 | CV34: WWN+ | CW34: £ million | CX34: 1
A35: NEA00514 | B35: Changed | F35: WQ | G35: Northumbria | H35: North East | I35: Northumbrian Water | J35: 7NW200509 | K35: Plawsworth | L35: Blackdene Burn to confluence with Wear | M35: GB103024077622 | N35: River | O35: Wear Lower and Estuary | S35: WFD_IMPg | T35: Phosphorus | Y35: Continuous Discharge | Z35: 2024-12-22 | AA35: Amber | AB35: 245/A/0712 | AC35: 426470 | AD35: 547470 | BI35: 1417 | BK35: 1 | BL35: Iron 4000 ug/l (95%ile) 8000 ug/l (UT) | BM35: 400 | BN35: 400 | CH35: 2.5 | CO35: Coal Authority planned removal of minewater point source discharge.FAS:Hillmeads, Nettlesworth | CR35: 3.095 | CS35: 1 | CT35: 1 | CU35: 1 | CV35: WWN+ | CW35: £ million | CX35: 1
A36: NEA00716 | B36: Changed | F36: WR | G36: Northumbria | H36: North East | I36: Northumbrian Water | J36: 7NW10006 | K36: Pont - channel d/s of sluice - MM6 and MM7 | L36: Pont from Source to Fenwick Burn | M36: GB103022076850 | N36: River | O36: Pont | S36: WFD_IMP_WRHMWB | Y36: Sustainability Change | Z36: 2024-12-22 | AA36: Amber | AB36: 1/23/01/001 | AC36: 405338 | AD36: 571341 | AF36: Channel d/s of sluice - MM6 and MM7 - unlikely to recover with new flow alone, needs intervention. | AN36: Yes | AP36: Coastal and floodplain grazing marsh | AS36: Restore habitat features | BU36: Kielder | BV36: x | BW36: 6,7 | BX36: - | BY36: - | BZ36: - | CH36: 1.7 | CO36: suspect MM1 fish pass and licence compliance delivered in AMP 6 , is not enough to improve degraded channel downstream of sluice. Estimated changes: Not being able to abstract water from the Pont would mean (in an average year) an additional 7,000Ml/year of pumping is required at Barrasford and the DI of Whittle Dene would need to be reduced by an average of 14Ml/d, resulting in an additional 5,110Ml/year being pumped at Ovingham. There will be no reduction in total supply. | CP36: http://environment.data.gov.uk/catchment-planning/WaterBody/GB103022076850 | CR36: 0.149 | CS36: 1 | CT36: 1 | CU36: 1 | CV36: WR | CW36: £ million | CX36: 1
A37: NEA00717 | F37: WR | G37: Northumbria | H37: North East | I37: Northumbrian Water | J37: 7NW100016 | K37: River Derwent - implement outcomes of Adaptive Management trials for end of AMP 7 - MM5 | L37: Derwent from Burnhope Burn to River Tyne | M37: GB103023074790 | N37: River | O37: Derwent Tyne | S37: WFD_IMP_WRHMWB | Y37: Adaptive Management | Z37: 2024-12-22 | AA37: Amber | AB37: 1/23/04/001 | AC37: 412531 | AD37: 556850 | AF37: River Derwent - implement outcomes of the AMP 6 adman / trial MM5 seasonal compensation. | AN37: Yes | BU37: Kielder | BV37: x | BW37: 5 | BX37: 50006 | BY37: 137.003 | BZ37: x | CB37: 18.4 | CH37: 38 | CM37: No | CN37: Recovering Salmon River | CO37: Adman trial started AMP6 and will spillover into AMP7, implement the outcomes by end of AMP7. Need to account and include for monitoring Col BY/Sust change is not reducing the licence but is the worst case impact of changing the reservoir releases to comply with UKTAG guidelines (given NW outflow constraints) and is subject to Aquator modelling as part of Options Appraisal report. Potential for Catchment Solution and Resilence combined with Flood scheme at Cherry Tree Drive and Path Head Dene, Sherburn Park Estate, Rowlands Gill Surface water management scheme, Shotley Bridge SW Flood Management Works, Leam Lane Estate, Ryton Greenfieldds, South Whickham | CP37: http://environment.data.gov.uk/catchment-planning/WaterBody/GB103023074790 | CR37: 0.083 | CS37: 1 | CT37: 1 | CU37: 1 | CV37: WR | CW37: £ million | CX37: 1
A38: NEA00526 | B38: Changed | F38: WQ | G38: Northumbria | H38: North East | I38: Northumbrian Water | J38: 7NW200521 | K38: Sacriston | L38: South Burn to confluence with Wear | M38: GB103024077623 | N38: River | O38: Wear Lower and Estuary | S38: WFD_IMPm | T38: Phosphorus | Y38: Continuous Discharge | Z38: 2024-12-22 | AA38: Amber | AB38: 245/1254 | AC38: 424620 | AD38: 547880 | BI38: 5334 | BK38: 0.25 | BL38: Iron 4000 ug/l (95%ile) 8000 ug/l (UT) | BM38: 1467 | BN38: 1467 | CH38: 4.9 | CO38: FAS:The properties in Craigland Villas suffer regularly from flooding from overland flows from the school fields to the rear. The properties have been flooded internally on several occasions. Option to be determined following outcome of study (ie SUDS). The properties in Dene Crescent suffer regularly from flooding from overland flows from the rear fields to the rear. The properties have been flooded internally on several occasions. Best option to be determined following outcome of study (i.e. SUDS). | CR38: 4.002 | CS38: 1 | CT38: 1 | CU38: 1 | CV38: WWN+ | CW38: £ million | CX38: 1
A39: NEA00529 | B39: Changed | F39: WQ | G39: Northumbria | H39: North East | I39: Northumbrian Water | J39: 7NW200524 | K39: Sedgefield | L39: Billingham Beck from Source to Bishopton Beck | M39: GB103025072410 | N39: River | O39: Tees Lower and Estuary | S39: WFD_IMPm | T39: Phosphorus | Y39: Continuous Discharge | Z39: 2024-12-22 | AA39: Amber | AB39: 254/1864 | AC39: 436020 | AD39: 527950 | BI39: 4585 | BK39: 0.25 | BL39: Iron 3500 ug/l (95%ile) 8000 ug/l (UT) | BM39: 1517 | BN39: 1517 | CH39: 7.7 | CO39: Possible northumbria integrated drainage plans | CR39: 3.564 | CS39: 1 | CT39: 1 | CU39: 1 | CV39: WWN+ | CW39: £ million | CX39: 1
A40: NEA00530 | B40: Changed | F40: WQ | G40: Northumbria | H40: North East | I40: Northumbrian Water | J40: 7NW200525 | K40: Sedgeletch | L40: Lumley Park Burn from Herrington Burn to R Wear | M40: Gb103024077580 | N40: River | O40: Wear Lower and Estuary | S40: WFD_IMPg | T40: Ammonia | Y40: Continuous Discharge | Z40: 2024-12-22 | AA40: Amber | AB40: 245/1243 | AC40: 432030 | AD40: 550820 | BI40: 51589 | BK40: 3.00 | BM40: 13500 | BN40: 13500 | CH40: 5 | CO40: potential Catchment Solution and resilience combined with flood scheme Caroline Street Flood Alleviation, Hetton | CR40: 4.668 | CS40: 1 | CT40: 1 | CU40: 1 | CV40: WWN+ | CW40: £ million | CX40: 1
A41: NEA00532 | B41: Changed | F41: WQ | G41: Northumbria | H41: North East | I41: Northumbrian Water | J41: 7NW200527 | K41: Sherburn | L41: Old Durham Beck from Chapman Beck to Wear | M41: GB103024077470 | N41: River | O41: Wear Lower and Estuary | S41: WFD_IMPm | T41: Phosphorus | Y41: Continuous Discharge | Z41: 2024-12-22 | AA41: Amber | AB41: 245/1248 | AC41: 431650 | AD41: 541830 | BI41: 5323 | BK41: 0.5 | BL41: Iron 4000 ug/l (95%ile) 8000 ug/l (UT) | BM41: 1650 | BN41: 1650 | CH41: 4.7 | CR41: 3.349 | CS41: 1 | CT41: 1 | CU41: 1 | CV41: WWN+ | CW41: £ million | CX41: 1
A42: NEA00536 | B42: Changed | F42: WQ | G42: Northumbria | H42: North East | I42: Northumbrian Water | J42: 7NW200531 | K42: Slaley - in combination effect with De Vere Hotel | L42: March Burn Catchment (trib of Tyne) | M42: GB103023075650 | N42: River | O42: Tyne Upper | S42: WFD_IMPg | T42: Phosphorus | Y42: Continuous Discharge | Z42: 2024-12-22 | AA42: Amber | AB42: 233/1178 | AC42: 398400 | AD42: 557300 | BI42: 308 | BK42: 2 | BL42: Iron 4000 ug/l (95%ile) 8000 ug/l (UT) | BM42: 86 | BN42: 86 | CH42: 8 | CR42: 1.805 | CS42: 1 | CT42: 1 | CU42: 1 | CV42: WWN+ | CW42: £ million | CX42: 1
A43: NEA00720 | B43: Changed | F43: WR | G43: Northumbria | H43: North East | I43: Northumbrian Water | J43: 7NW100017 | K43: Smiddy Shaw and Hisehope reservoirs Surface Water Transfer , MM5, MM7 and MM8 | L43: Horsleyhope Burn Catchment (Trib of Derwent) | M43: GB103023074740 | N43: River | O43: Derwent Tyne | S43: WFD_IMP_WRHMWB | Y43: Investigation and Options Appraisal | Z43: 2024-12-22 | AA43: Amber | AB43: 1/24/01/034 | AC43: 402200 | AD43: 546620 | AF43: MM5 Establish an appropriate baseline flow regime plus gravels MM7 and MM8 | AN43: No | BU43: Kielder | BV43: x | BW43: 5,7,8 | BX43: 35458.8 | BY43: 97.149 | BZ43: x | CH43: 4.72 | CP43: http://environment.data.gov.uk/catchment-planning/WaterBody/GB103023074740 | CR43: 0.083 | CS43: 1 | CT43: 1 | CU43: 1 | CV43: WR | CW43: £ million | CX43: 1
A44: NEA00563 | B44: Changed | F44: WQ | G44: Northumbria | H44: North East | I44: Northumbrian Water | J44: 7NW200556 | K44: Teeside Airport | L44: Lustrum Beck Catchment (trib of Tees) | M44: GB103025072550 | N44: River | O44: Tees Lower and Estuary | S44: WFD_IMPm | T44: Phosphorus | Y44: Continuous Discharge | Z44: 2024-12-22 | AA44: Amber | AB44: 254/1866 | AC44: 437210 | AD44: 514190 | BI44: 755 | BK44: 0.4 | BL44: Iron 4000 ug/l (95%ile) 8000 ug/l (UT) | BM44: 447 | BN44: 447 | CH44: 1.8 | CN44: Recovering Salmon River | CO44: Possible northumbria integrated drainage plans. FAS:Portrack Industrial Estates | CR44: 3.884 | CS44: 1 | CT44: 1 | CU44: 1 | CV44: WWN+ | CW44: £ million | CX44: 1
A45: NEA00575 | B45: Changed | F45: WQ | G45: Northumbria | H45: North East | I45: Northumbrian Water | J45: 7NW200568 | K45: Trimdon | L45: Skerne from Source to Carrs | M45: GB103025076070 | N45: River | O45: Skerne | S45: WFD_IMPm | T45: Phosphorus | Y45: Continuous Discharge | Z45: 2024-12-22 | AA45: Amber | AB45: 25/03/1232 | AC45: 437660 | AD45: 534510 | BI45: 4715 | BK45: 0.3 | BL45: Iron 4000 ug/l (95%ile) 8000 ug/l (UT) | BM45: 1308 | BN45: 1308 | CH45: 12.8 | CO45: Possible northumbria integrated drainage plans | CR45: 4.265 | CS45: 1 | CT45: 1 | CU45: 1 | CV45: WWN+ | CW45: £ million | CX45: 1
A46: NEA00722 | F46: WR | G46: Northumbria | H46: North East | I46: Northumbrian Water | J46: 7NW100003 | K46: Waskerley Res - d/s dam wall - implement outcomes of Adaptive Management trials for end of AMP 7 - MM5, plus MM1, MM2, MM4, MM8 | L46: Waskerley Beck from Source to Wear | M46: GB103024077520 | N46: River | O46: Wear Upper | S46: WFD_IMP_WRHMWB | T46: n/a | Y46: Adaptive Management | Z46: 2024-12-22 | AA46: Amber | AB46: 1/24/01/034 | AC46: 402500 | AD46: 544210 | AF46: Implement outcomes of the AMP6 trial MM5 putting seasonality to compensation release, plus MM1, MM2, MM7 and MM8. | AN46: No | BU46: Kielder | BV46: x | BW46: 1,2,4,5,8 | BX46: 35458.8 | BY46: 97.149 | BZ46: x | CB46: 2.4 | CH46: 2.81 | CO46: Adman trial started AMP6 and will spillover into AMP7, implement the outcomes by end of AMP7. Need to account and include for monitoring Col BX/ Sust Change is for if scheme at IMP stage, not reducing the licence but is worst case impact of adopting UKTAG building block flows and is subject to Aquator modelling as part of Options Appraisal report | CP46: http://environment.data.gov.uk/catchment-planning/WaterBody/GB103024077520 | CR46: 0.083 | CS46: 1 | CT46: 1 | CU46: 1 | CV46: WR | CW46: £ million | CX46: 1
A47: NEA00723 | F47: WR | G47: Northumbria | H47: North East | I47: Northumbrian Water | J47: 7NW100012 | K47: Wear Pipe crossing St Johns Chapel -fish passage MM1 | L47: Wear from Wearhead to Middlehope Burn, Iresho | M47: GB103024077440 | N47: River | O47: Wear Upper | S47: WFD_IMP_WRHMWB | Y47: Fish Passage | Z47: 2024-12-22 | AA47: Amber | AB47: - | AC47: 387963 | AD47: 538352 | AF47: Wear Pipe crossing St Johns Chapel -fish passage MM0 | AN47: No | BU47: Kielder | BV47: x | BW47: 1,8 | BX47: - | BY47: - | BZ47: - | CH47: 22.14 | CM47: No | CP47: http://environment.data.gov.uk/catchment-planning/WaterBody/GB103024077440 | CR47: 0.176 | CS47: 1 | CT47: 1 | CU47: 1 | CV47: WR | CW47: £ million | CX47: 1
A48: NEA00590 | B48: Changed | F48: WQ | G48: Northumbria | H48: North East | I48: Northumbrian Water | J48: 7NW200583 | K48: Witton Gilbert | L48: Browney from Deerness confl to Wear | M48: GB103024077552 | N48: River | O48: Browney | S48: WFD_IMPg | T48: Phosphorus | Y48: Continuous Discharge | Z48: 2024-12-22 | AA48: Amber | AB48: 244/1027 | AC48: 423280 | AD48: 545060 | BI48: 7377 | BK48: 0.7 | BL48: Iron 4000 ug/l (95%ile) 8000 ug/l (UT) | BM48: 1730 | BN48: 1730 | CH48: 7 | CR48: 2.724 | CS48: 1 | CT48: 1 | CU48: 1 | CV48: WWN+ | CW48: £ million | CX48: 1

Sheet InpActive
A1: =RIGHT(CELL("filename", $A$1), LEN(CELL("filename", $A$1)) - SEARCH("]", CELL("filename", $A$1))) -> InpActive
E2: =Time!E25 -> Model period ending | F2: =Check!F2 -> 0 | G2: Checks | J2: =Time!J$25 -> 2019-03-31 | K2: =Time!K$25 -> 2020-03-31 | L2: =Time!L$25 -> 2021-03-31 | M2: =Time!M$25 -> 2022-03-31 | N2: =Time!N$25 -> 2023-03-31 | O2: =Time!O$25 -> 2024-03-31 | P2: =Time!P$25 -> 2025-03-31 | Q2: =Time!Q$25 -> 2026-03-31 | R2: =Time!R$25 -> 2027-03-31 | S2: =Time!S$25 -> 2028-03-31
E3: =Time!E107 -> Timeline label | F3: =Check!F3 -> 3 | G3: Track chgs | J3: =Time!J$107 -> Pre-Fcst | K3: =Time!K$107 -> Pre-Fcst | L3: =Time!L$107 -> Forecast | M3: =Time!M$107 -> Forecast | N3: =Time!N$107 -> Forecast | O3: =Time!O$107 -> Forecast | P3: =Time!P$107 -> Forecast | Q3: =Time!Q$107 -> Post-Fcst | R3: =Time!R$107 -> Post-Fcst | S3: =Time!S$107 -> Post-Fcst
E4: =Time!E130 -> Financial year ending | J4: =Time!J$130 -> 2019 | K4: =Time!K$130 -> 2020 | L4: =Time!L$130 -> 2021 | M4: =Time!M$130 -> 2022 | N4: =Time!N$130 -> 2023 | O4: =Time!O$130 -> 2024 | P4: =Time!P$130 -> 2025 | Q4: =Time!Q$130 -> 2026 | R4: =Time!R$130 -> 2027 | S4: =Time!S$130 -> 2028
E5: =Time!E10 -> Model column counter | F5: Constant | G5: Unit | H5: Total | J5: =Time!J$10 -> 1 | K5: =Time!K$10 -> 2 | L5: =Time!L$10 -> 3 | M5: =Time!M$10 -> 4 | N5: =Time!N$10 -> 5 | O5: =Time!O$10 -> 6 | P5: =Time!P$10 -> 7 | Q5: =Time!Q$10 -> 8 | R5: =Time!R$10 -> 9 | S5: =Time!S$10 -> 10
A7: A: TIME
B9: Timeline setup
C11: Timeline start dates
E12: 1st model column start date | F12: 2018-04-01 | G12: date | H12: Date should be the first date of the financial year
C14: Financial year inputs
E15: First modelling column financial year # | F15: 2019 | G15: year # | H15: Financial model start year
E16: Financial year end month number # | F16: 3 | G16: month # | H16: Month of financial year end for financial model
C18: Timeline labels
E19: Pre - forecast period | F19: Pre-Fcst | G19: label
E20: Forecast period | F20: Forecast | G20: label
E21: Post - forecast period | F21: Post-Fcst | G21: label
B23: Project dates
E25: Forecast start date | F25: 2020-04-01 | G25: date
E26: Forecast duration | F26: 5 | G26: years
E27: Forecast duration (text) | F27: 2020-25 | G27: years # | H27: For Info only
E29: Forecast period reconcilation is profiled from | F29: 3 | G29: year
A31: B: FINANCING INPUTS
E33: Financing cost index | G33: Index | L33: 4 | M33: 3 | N33: 2 | O33: 1 | P33: 0
E35: Financing Cost | F35: 0.0292 | G35: %
A37: C: NON CHANGEABLE MODEL TECHNICAL INPUTS
E39: Months per model period | F39: 12 | G39: months
E41: Track Tolerance Level | F41: 0.001 | G41: tolerance
E42: Check Tolerance Level | F42: 1e-07 | G42: tolerance
E44: Thousands in a million | F44: 1000 | G44: thousands
E45: Units in a million | F45: 1000000 | G45: unit
E46: Unit conversion to percentage | F46: 100 | G46: unit
A48: End of sheet

Sheet Calcs >>

Sheet WINEP_Schemes
A1: =RIGHT(CELL("filename", $A$1), LEN(CELL("filename", $A$1)) - SEARCH("]", CELL("filename", $A$1))) -> WINEP_Schemes
F2: =Check!F2 -> 0 | G2: Checks
F3: =Check!F3 -> 3 | G3: Track chgs
A5: AMBER WINEP SCHEMES
C7: List of WINEP schemes that were unconfirmed at FD
C8: The lines below are examples with some dummy inputs.
C9: WINEPID | D9: Unique ID | E9: Scheme category / name | F9: Unit | G9: Unit Conversion to £m | I9: Allowed totex unit rate | J9: Quantity in PR19 FD | K9: Quantity Delivered | L9: 1 = In FD, funded 0 = In FD, not funded | M9: Price Control | N9: Proportion Confirmed
C10: =WINEP_Inputs!A5 -> EAN00324 | D10: =WINEP_Inputs!J5 -> 7ES100130 | E10: =WINEP_Inputs!K5 -> LANGHAM A, B, C & E | F10: =WINEP_Inputs!CW5 -> 0 | G10: =WINEP_Inputs!CX5 -> 0 | I10: =WINEP_Inputs!CR5 -> 0 | J10: =WINEP_Inputs!CS5 -> 1 | K10: =WINEP_Inputs!CT5 -> 1 | L10: =WINEP_Inputs!CU5 -> 1 | M10: =WINEP_Inputs!CV5 -> 0 | N10: =IF(K10 = 0, 0, K10 / J10) -> 1
C11: =WINEP_Inputs!A6 -> EAN00401 | D11: =WINEP_Inputs!J6 -> 7ES200010 | E11: =WINEP_Inputs!K6 -> Eel measures at Ormesby Broad | F11: =WINEP_Inputs!CW6 -> £ million | G11: =WINEP_Inputs!CX6 -> 1 | I11: =WINEP_Inputs!CR6 -> 0 | J11: =WINEP_Inputs!CS6 -> 1 | K11: =WINEP_Inputs!CT6 -> 1 | L11: =WINEP_Inputs!CU6 -> 1 | M11: =WINEP_Inputs!CV6 -> WR | N11: 1
C12: =WINEP_Inputs!A7 -> NEA00013 | D12: =WINEP_Inputs!J7 -> 7NW200012 | E12: =WINEP_Inputs!K7 -> Aldin Grange | F12: =WINEP_Inputs!CW7 -> £ million | G12: =WINEP_Inputs!CX7 -> 1 | I12: =WINEP_Inputs!CR7 -> 3.126 | J12: =WINEP_Inputs!CS7 -> 1 | K12: =WINEP_Inputs!CT7 -> 1 | L12: =WINEP_Inputs!CU7 -> 1 | M12: =WINEP_Inputs!CV7 -> WWN+ | N12: 1
C13: =WINEP_Inputs!A8 -> NEA00702 | D13: =WINEP_Inputs!J8 -> 7NW100001 | E13: =WINEP_Inputs!K8 -> Balder - d/s Hury Resvoir dam wall - - continue AMP 6 adaptive management trial putting seasonality to compensation release then implement end of AMP 7 - MM5, MM2, MM7 and MM8 | F13: =WINEP_Inputs!CW8 -> £ million | G13: =WINEP_Inputs!CX8 -> 1 | I13: =WINEP_Inputs!CR8 -> 0.083 | J13: =WINEP_Inputs!CS8 -> 1 | K13: =WINEP_Inputs!CT8 -> 1 | L13: =WINEP_Inputs!CU8 -> 1 | M13: =WINEP_Inputs!CV8 -> WR | N13: 1
C14: =WINEP_Inputs!A9 -> NEA00703 | D14: =WINEP_Inputs!J9 -> 7NW10005 | E14: =WINEP_Inputs!K9 -> Barrasford raw water pumping station - Rede to Gunnerton Burn, Barrasford to S Tyne, Watersmeet to Tidal Limit - Eels Regs and MM3 | F14: =WINEP_Inputs!CW9 -> £ million | G14: =WINEP_Inputs!CX9 -> 1 | I14: =WINEP_Inputs!CR9 -> 1.071 | J14: =WINEP_Inputs!CS9 -> 1 | K14: =WINEP_Inputs!CT9 -> 0 | L14: =WINEP_Inputs!CU9 -> 1 | M14: =WINEP_Inputs!CV9 -> WR | N14: 0
C15: =WINEP_Inputs!A10 -> NEA00047 | D15: =WINEP_Inputs!J10 -> 7NW200044 | E15: =WINEP_Inputs!K10 -> Bishop Middleham | F15: =WINEP_Inputs!CW10 -> £ million | G15: =WINEP_Inputs!CX10 -> 1 | I15: =WINEP_Inputs!CR10 -> 1.895 | J15: =WINEP_Inputs!CS10 -> 1 | K15: =WINEP_Inputs!CT10 -> 1 | L15: =WINEP_Inputs!CU10 -> 1 | M15: =WINEP_Inputs!CV10 -> WWN+ | N15: 1
C16: =WINEP_Inputs!A11 -> NEA00706 | D16: =WINEP_Inputs!J11 -> 7NW10088 | E16: =WINEP_Inputs!K11 -> BLACK BURN catchwater, feeds into Burnhope Burn d/s of Catchwater . 100% take. MM5, MM7 | F16: =WINEP_Inputs!CW11 -> £ million | G16: =WINEP_Inputs!CX11 -> 1 | I16: =WINEP_Inputs!CR11 -> 0.133 | J16: =WINEP_Inputs!CS11 -> 1 | K16: =WINEP_Inputs!CT11 -> 1 | L16: =WINEP_Inputs!CU11 -> 1 | M16: =WINEP_Inputs!CV11 -> WR | N16: =IF(K16 = 0, 0, K16 / J16) -> 1
C17: =WINEP_Inputs!A12 -> NEA00054 | D17: =WINEP_Inputs!J12 -> 7NW200051 | E17: =WINEP_Inputs!K12 -> Bowburn | F17: =WINEP_Inputs!CW12 -> £ million | G17: =WINEP_Inputs!CX12 -> 1 | I17: =WINEP_Inputs!CR12 -> 0 | J17: =WINEP_Inputs!CS12 -> 1 | K17: =WINEP_Inputs!CT12 -> 1 | L17: =WINEP_Inputs!CU12 -> 1 | M17: =WINEP_Inputs!CV12 -> WWN+ | N17: 1
C18: =WINEP_Inputs!A13 -> NEA00060 | D18: =WINEP_Inputs!J13 -> 7NW200057 | E18: =WINEP_Inputs!K13 -> Browney | F18: =WINEP_Inputs!CW13 -> £ million | G18: =WINEP_Inputs!CX13 -> 1 | I18: =WINEP_Inputs!CR13 -> 0.14 | J18: =WINEP_Inputs!CS13 -> 1 | K18: =WINEP_Inputs!CT13 -> 1 | L18: =WINEP_Inputs!CU13 -> 1 | M18: =WINEP_Inputs!CV13 -> WWN+ | N18: 1
C19: =WINEP_Inputs!A14 -> NEA00707 | D19: =WINEP_Inputs!J14 -> 7NW10009 | E19: =WINEP_Inputs!K14 -> Burnhope Burn catchwater to River Derwent MM1 and MM2 , MM5, MM7 | F19: =WINEP_Inputs!CW14 -> £ million | G19: =WINEP_Inputs!CX14 -> 1 | I19: =WINEP_Inputs!CR14 -> 0.243 | J19: =WINEP_Inputs!CS14 -> 1 | K19: =WINEP_Inputs!CT14 -> 1 | L19: =WINEP_Inputs!CU14 -> 1 | M19: =WINEP_Inputs!CV14 -> WR | N19: 1
C20: =WINEP_Inputs!A15 -> NEA00068 | D20: =WINEP_Inputs!J15 -> 7NW200065 | E20: =WINEP_Inputs!K15 -> Carlton Redmarshall | F20: =WINEP_Inputs!CW15 -> £ million | G20: =WINEP_Inputs!CX15 -> 1 | I20: =WINEP_Inputs!CR15 -> 3.185 | J20: =WINEP_Inputs!CS15 -> 1 | K20: =WINEP_Inputs!CT15 -> 1 | L20: =WINEP_Inputs!CU15 -> 1 | M20: =WINEP_Inputs!CV15 -> WWN+ | N20: 1
C21: =WINEP_Inputs!A16 -> NEA00070 | D21: =WINEP_Inputs!J16 -> 7NW200067 | E21: =WINEP_Inputs!K16 -> Chilton Lane | F21: =WINEP_Inputs!CW16 -> £ million | G21: =WINEP_Inputs!CX16 -> 1 | I21: =WINEP_Inputs!CR16 -> 3.226 | J21: =WINEP_Inputs!CS16 -> 1 | K21: =WINEP_Inputs!CT16 -> 1 | L21: =WINEP_Inputs!CU16 -> 1 | M21: =WINEP_Inputs!CV16 -> WWN+ | N21: 1
C22: =WINEP_Inputs!A17 -> NEA00074 | D22: =WINEP_Inputs!J17 -> 7NW200071 | E22: =WINEP_Inputs!K17 -> Crookhall | F22: =WINEP_Inputs!CW17 -> £ million | G22: =WINEP_Inputs!CX17 -> 1 | I22: =WINEP_Inputs!CR17 -> 1.385 | J22: =WINEP_Inputs!CS17 -> 1 | K22: =WINEP_Inputs!CT17 -> 1 | L22: =WINEP_Inputs!CU17 -> 1 | M22: =WINEP_Inputs!CV17 -> WWN+ | N22: 1
C23: =WINEP_Inputs!A18 -> NEA00081 | D23: =WINEP_Inputs!J18 -> 7NW200078 | E23: =WINEP_Inputs!K18 -> Dipton | F23: =WINEP_Inputs!CW18 -> £ million | G23: =WINEP_Inputs!CX18 -> 1 | I23: =WINEP_Inputs!CR18 -> 1.962 | J23: =WINEP_Inputs!CS18 -> 1 | K23: =WINEP_Inputs!CT18 -> 1 | L23: =WINEP_Inputs!CU18 -> 1 | M23: =WINEP_Inputs!CV18 -> WWN+ | N23: 1
C24: =WINEP_Inputs!A19 -> NEA00089 | D24: =WINEP_Inputs!J19 -> 7NW200086 | E24: =WINEP_Inputs!K19 -> Esh Winning | F24: =WINEP_Inputs!CW19 -> £ million | G24: =WINEP_Inputs!CX19 -> 1 | I24: =WINEP_Inputs!CR19 -> 0 | J24: =WINEP_Inputs!CS19 -> 1 | K24: =WINEP_Inputs!CT19 -> 1 | L24: =WINEP_Inputs!CU19 -> 1 | M24: =WINEP_Inputs!CV19 -> WWN+ | N24: 1
C25: =WINEP_Inputs!A20 -> NEA00093 | D25: =WINEP_Inputs!J20 -> 7NW200089 | E25: =WINEP_Inputs!K20 -> Fishburn | F25: =WINEP_Inputs!CW20 -> £ million | G25: =WINEP_Inputs!CX20 -> 1 | I25: =WINEP_Inputs!CR20 -> 2.403 | J25: =WINEP_Inputs!CS20 -> 1 | K25: =WINEP_Inputs!CT20 -> 1 | L25: =WINEP_Inputs!CU20 -> 1 | M25: =WINEP_Inputs!CV20 -> WWN+ | N25: 1
C26: =WINEP_Inputs!A21 -> NEA00710 | D26: =WINEP_Inputs!J21 -> 7NW100011 | E26: =WINEP_Inputs!K21 -> Harthope burn catchwater - Water supply asset - MM1 and MM7 | F26: =WINEP_Inputs!CW21 -> £ million | G26: =WINEP_Inputs!CX21 -> 1 | I26: =WINEP_Inputs!CR21 -> 0.176 | J26: =WINEP_Inputs!CS21 -> 1 | K26: =WINEP_Inputs!CT21 -> 1 | L26: =WINEP_Inputs!CU21 -> 1 | M26: =WINEP_Inputs!CV21 -> WR | N26: 1
C27: =WINEP_Inputs!A22 -> NEA00115 | D27: =WINEP_Inputs!J22 -> 7NW200110 | E27: =WINEP_Inputs!K22 -> Hustledown STW (CIP2 T1) | F27: =WINEP_Inputs!CW22 -> £ million | G27: =WINEP_Inputs!CX22 -> 1 | I27: =WINEP_Inputs!CR22 -> 4.505 | J27: =WINEP_Inputs!CS22 -> 1 | K27: =WINEP_Inputs!CT22 -> 1 | L27: =WINEP_Inputs!CU22 -> 1 | M27: =WINEP_Inputs!CV22 -> WWN+ | N27: 1
C28: =WINEP_Inputs!A23 -> NEA00117 | D28: =WINEP_Inputs!J23 -> 7NW200112 | E28: =WINEP_Inputs!K23 -> Hustledown STW (CIP2 T1) | F28: =WINEP_Inputs!CW23 -> £ million | G28: =WINEP_Inputs!CX23 -> 1 | I28: =WINEP_Inputs!CR23 -> 0 | J28: =WINEP_Inputs!CS23 -> 1 | K28: =WINEP_Inputs!CT23 -> 1 | L28: =WINEP_Inputs!CU23 -> 1 | M28: =WINEP_Inputs!CV23 -> WWN+ | N28: 1
C29: =WINEP_Inputs!A24 -> NEA00711 | D29: =WINEP_Inputs!J24 -> 7NW100013 | E29: =WINEP_Inputs!K24 -> Ireshope - Wham pasture MM1. MM7 Burnhope res supply | F29: =WINEP_Inputs!CW24 -> £ million | G29: =WINEP_Inputs!CX24 -> 1 | I29: =WINEP_Inputs!CR24 -> 0.176 | J29: =WINEP_Inputs!CS24 -> 1 | K29: =WINEP_Inputs!CT24 -> 1 | L29: =WINEP_Inputs!CU24 -> 1 | M29: =WINEP_Inputs!CV24 -> WR | N29: 1
C30: =WINEP_Inputs!A25 -> NEA00712 | D30: =WINEP_Inputs!J25 -> 7NW100014 | E30: =WINEP_Inputs!K25 -> Ireshope Burn - Greenwell Crags - MM1, MM7 Burnhope res supply | F30: =WINEP_Inputs!CW25 -> £ million | G30: =WINEP_Inputs!CX25 -> 1 | I30: =WINEP_Inputs!CR25 -> 0.176 | J30: =WINEP_Inputs!CS25 -> 1 | K30: =WINEP_Inputs!CT25 -> 1 | L30: =WINEP_Inputs!CU25 -> 1 | M30: =WINEP_Inputs!CV25 -> WR | N30: 1
C31: =WINEP_Inputs!A26 -> NEA00466 | D31: =WINEP_Inputs!J26 -> 7NW200461 | E31: =WINEP_Inputs!K26 -> Kelloe | F31: =WINEP_Inputs!CW26 -> £ million | G31: =WINEP_Inputs!CX26 -> 1 | I31: =WINEP_Inputs!CR26 -> 2.169 | J31: =WINEP_Inputs!CS26 -> 1 | K31: =WINEP_Inputs!CT26 -> 1 | L31: =WINEP_Inputs!CU26 -> 1 | M31: =WINEP_Inputs!CV26 -> WWN+ | N31: 1
C32: =WINEP_Inputs!A27 -> NEA00468 | D32: =WINEP_Inputs!J27 -> 7NW200463 | E32: =WINEP_Inputs!K27 -> Kirklevington STW | F32: =WINEP_Inputs!CW27 -> £ million | G32: =WINEP_Inputs!CX27 -> 1 | I32: =WINEP_Inputs!CR27 -> 3.102 | J32: =WINEP_Inputs!CS27 -> 1 | K32: =WINEP_Inputs!CT27 -> 1 | L32: =WINEP_Inputs!CU27 -> 1 | M32: =WINEP_Inputs!CV27 -> WWN+ | N32: 1
C33: =WINEP_Inputs!A28 -> NEA00469 | D33: =WINEP_Inputs!J28 -> 7NW200464 | E33: =WINEP_Inputs!K28 -> Knitsley | F33: =WINEP_Inputs!CW28 -> £ million | G33: =WINEP_Inputs!CX28 -> 1 | I33: =WINEP_Inputs!CR28 -> 3.622 | J33: =WINEP_Inputs!CS28 -> 1 | K33: =WINEP_Inputs!CT28 -> 1 | L33: =WINEP_Inputs!CU28 -> 1 | M33: =WINEP_Inputs!CV28 -> WWN+ | N33: 1
C34: =WINEP_Inputs!A29 -> NEA00470 | D34: =WINEP_Inputs!J29 -> 7NW200465 | E34: =WINEP_Inputs!K29 -> Lanchester | F34: =WINEP_Inputs!CW29 -> £ million | G34: =WINEP_Inputs!CX29 -> 1 | I34: =WINEP_Inputs!CR29 -> 4.325 | J34: =WINEP_Inputs!CS29 -> 1 | K34: =WINEP_Inputs!CT29 -> 1 | L34: =WINEP_Inputs!CU29 -> 1 | M34: =WINEP_Inputs!CV29 -> WWN+ | N34: 1
C35: =WINEP_Inputs!A30 -> NEA00477 | D35: =WINEP_Inputs!J30 -> 7NW200472 | E35: =WINEP_Inputs!K30 -> Longnewton | F35: =WINEP_Inputs!CW30 -> £ million | G35: =WINEP_Inputs!CX30 -> 1 | I35: =WINEP_Inputs!CR30 -> 3.06 | J35: =WINEP_Inputs!CS30 -> 1 | K35: =WINEP_Inputs!CT30 -> 1 | L35: =WINEP_Inputs!CU30 -> 1 | M35: =WINEP_Inputs!CV30 -> WWN+ | N35: 1
C36: =WINEP_Inputs!A31 -> NEA00713 | D36: =WINEP_Inputs!J31 -> 7NW100002 | E36: =WINEP_Inputs!K31 -> Lune - Grassholme Res Dam wall - continue AMP 6 adaptive management trial putting seasonality to compensation release then implement end of AMP 7 - MM5, MM2, MM7 amd MM8 | F36: =WINEP_Inputs!CW31 -> £ million | G36: =WINEP_Inputs!CX31 -> 1 | I36: =WINEP_Inputs!CR31 -> 0.083 | J36: =WINEP_Inputs!CS31 -> 1 | K36: =WINEP_Inputs!CT31 -> 1 | L36: =WINEP_Inputs!CU31 -> 1 | M36: =WINEP_Inputs!CV31 -> WR | N36: 1
C37: =WINEP_Inputs!A32 -> NEA00499 | D37: =WINEP_Inputs!J32 -> 7NW200494 | E37: =WINEP_Inputs!K32 -> New Moors | F37: =WINEP_Inputs!CW32 -> £ million | G37: =WINEP_Inputs!CX32 -> 1 | I37: =WINEP_Inputs!CR32 -> 3.551 | J37: =WINEP_Inputs!CS32 -> 1 | K37: =WINEP_Inputs!CT32 -> 1 | L37: =WINEP_Inputs!CU32 -> 1 | M37: =WINEP_Inputs!CV32 -> WWN+ | N37: 1
C38: =WINEP_Inputs!A33 -> NEA00512 | D38: =WINEP_Inputs!J33 -> 7NW200507 | E38: =WINEP_Inputs!K33 -> Pittington | F38: =WINEP_Inputs!CW33 -> £ million | G38: =WINEP_Inputs!CX33 -> 1 | I38: =WINEP_Inputs!CR33 -> 3.102 | J38: =WINEP_Inputs!CS33 -> 1 | K38: =WINEP_Inputs!CT33 -> 1 | L38: =WINEP_Inputs!CU33 -> 1 | M38: =WINEP_Inputs!CV33 -> WWN+ | N38: 1
C39: =WINEP_Inputs!A34 -> NEA00513 | D39: =WINEP_Inputs!J34 -> 7NW200508 | E39: =WINEP_Inputs!K34 -> Pity Me | F39: =WINEP_Inputs!CW34 -> £ million | G39: =WINEP_Inputs!CX34 -> 1 | I39: =WINEP_Inputs!CR34 -> 3.995 | J39: =WINEP_Inputs!CS34 -> 1 | K39: =WINEP_Inputs!CT34 -> 1 | L39: =WINEP_Inputs!CU34 -> 1 | M39: =WINEP_Inputs!CV34 -> WWN+ | N39: 1
C40: =WINEP_Inputs!A35 -> NEA00514 | D40: =WINEP_Inputs!J35 -> 7NW200509 | E40: =WINEP_Inputs!K35 -> Plawsworth | F40: =WINEP_Inputs!CW35 -> £ million | G40: =WINEP_Inputs!CX35 -> 1 | I40: =WINEP_Inputs!CR35 -> 3.095 | J40: =WINEP_Inputs!CS35 -> 1 | K40: =WINEP_Inputs!CT35 -> 1 | L40: =WINEP_Inputs!CU35 -> 1 | M40: =WINEP_Inputs!CV35 -> WWN+ | N40: 1
C41: =WINEP_Inputs!A36 -> NEA00716 | D41: =WINEP_Inputs!J36 -> 7NW10006 | E41: =WINEP_Inputs!K36 -> Pont - channel d/s of sluice - MM6 and MM7 | F41: =WINEP_Inputs!CW36 -> £ million | G41: =WINEP_Inputs!CX36 -> 1 | I41: =WINEP_Inputs!CR36 -> 0.149 | J41: =WINEP_Inputs!CS36 -> 1 | K41: =WINEP_Inputs!CT36 -> 1 | L41: =WINEP_Inputs!CU36 -> 1 | M41: =WINEP_Inputs!CV36 -> WR | N41: 1
C42: =WINEP_Inputs!A37 -> NEA00717 | D42: =WINEP_Inputs!J37 -> 7NW100016 | E42: =WINEP_Inputs!K37 -> River Derwent - implement outcomes of Adaptive Management trials for end of AMP 7 - MM5 | F42: =WINEP_Inputs!CW37 -> £ million | G42: =WINEP_Inputs!CX37 -> 1 | I42: =WINEP_Inputs!CR37 -> 0.083 | J42: =WINEP_Inputs!CS37 -> 1 | K42: =WINEP_Inputs!CT37 -> 1 | L42: =WINEP_Inputs!CU37 -> 1 | M42: =WINEP_Inputs!CV37 -> WR | N42: 1
C43: =WINEP_Inputs!A38 -> NEA00526 | D43: =WINEP_Inputs!J38 -> 7NW200521 | E43: =WINEP_Inputs!K38 -> Sacriston | F43: =WINEP_Inputs!CW38 -> £ million | G43: =WINEP_Inputs!CX38 -> 1 | I43: =WINEP_Inputs!CR38 -> 4.002 | J43: =WINEP_Inputs!CS38 -> 1 | K43: =WINEP_Inputs!CT38 -> 1 | L43: =WINEP_Inputs!CU38 -> 1 | M43: =WINEP_Inputs!CV38 -> WWN+ | N43: 1
C44: =WINEP_Inputs!A39 -> NEA00529 | D44: =WINEP_Inputs!J39 -> 7NW200524 | E44: =WINEP_Inputs!K39 -> Sedgefield | F44: =WINEP_Inputs!CW39 -> £ million | G44: =WINEP_Inputs!CX39 -> 1 | I44: =WINEP_Inputs!CR39 -> 3.564 | J44: =WINEP_Inputs!CS39 -> 1 | K44: =WINEP_Inputs!CT39 -> 1 | L44: =WINEP_Inputs!CU39 -> 1 | M44: =WINEP_Inputs!CV39 -> WWN+ | N44: 1
C45: =WINEP_Inputs!A40 -> NEA00530 | D45: =WINEP_Inputs!J40 -> 7NW200525 | E45: =WINEP_Inputs!K40 -> Sedgeletch | F45: =WINEP_Inputs!CW40 -> £ million | G45: =WINEP_Inputs!CX40 -> 1 | I45: =WINEP_Inputs!CR40 -> 4.668 | J45: =WINEP_Inputs!CS40 -> 1 | K45: =WINEP_Inputs!CT40 -> 1 | L45: =WINEP_Inputs!CU40 -> 1 | M45: =WINEP_Inputs!CV40 -> WWN+ | N45: 1
C46: =WINEP_Inputs!A41 -> NEA00532 | D46: =WINEP_Inputs!J41 -> 7NW200527 | E46: =WINEP_Inputs!K41 -> Sherburn | F46: =WINEP_Inputs!CW41 -> £ million | G46: =WINEP_Inputs!CX41 -> 1 | I46: =WINEP_Inputs!CR41 -> 3.349 | J46: =WINEP_Inputs!CS41 -> 1 | K46: =WINEP_Inputs!CT41 -> 1 | L46: =WINEP_Inputs!CU41 -> 1 | M46: =WINEP_Inputs!CV41 -> WWN+ | N46: 1
C47: =WINEP_Inputs!A42 -> NEA00536 | D47: =WINEP_Inputs!J42 -> 7NW200531 | E47: =WINEP_Inputs!K42 -> Slaley - in combination effect with De Vere Hotel | F47: =WINEP_Inputs!CW42 -> £ million | G47: =WINEP_Inputs!CX42 -> 1 | I47: =WINEP_Inputs!CR42 -> 1.805 | J47: =WINEP_Inputs!CS42 -> 1 | K47: =WINEP_Inputs!CT42 -> 1 | L47: =WINEP_Inputs!CU42 -> 1 | M47: =WINEP_Inputs!CV42 -> WWN+ | N47: 1
C48: =WINEP_Inputs!A43 -> NEA00720 | D48: =WINEP_Inputs!J43 -> 7NW100017 | E48: =WINEP_Inputs!K43 -> Smiddy Shaw and Hisehope reservoirs Surface Water Transfer , MM5, MM7 and MM8 | F48: =WINEP_Inputs!CW43 -> £ million | G48: =WINEP_Inputs!CX43 -> 1 | I48: =WINEP_Inputs!CR43 -> 0.083 | J48: =WINEP_Inputs!CS43 -> 1 | K48: =WINEP_Inputs!CT43 -> 1 | L48: =WINEP_Inputs!CU43 -> 1 | M48: =WINEP_Inputs!CV43 -> WR | N48: 1
C49: =WINEP_Inputs!A44 -> NEA00563 | D49: =WINEP_Inputs!J44 -> 7NW200556 | E49: =WINEP_Inputs!K44 -> Teeside Airport | F49: =WINEP_Inputs!CW44 -> £ million | G49: =WINEP_Inputs!CX44 -> 1 | I49: =WINEP_Inputs!CR44 -> 3.884 | J49: =WINEP_Inputs!CS44 -> 1 | K49: =WINEP_Inputs!CT44 -> 1 | L49: =WINEP_Inputs!CU44 -> 1 | M49: =WINEP_Inputs!CV44 -> WWN+ | N49: 1
C50: =WINEP_Inputs!A45 -> NEA00575 | D50: =WINEP_Inputs!J45 -> 7NW200568 | E50: =WINEP_Inputs!K45 -> Trimdon | F50: =WINEP_Inputs!CW45 -> £ million | G50: =WINEP_Inputs!CX45 -> 1 | I50: =WINEP_Inputs!CR45 -> 4.265 | J50: =WINEP_Inputs!CS45 -> 1 | K50: =WINEP_Inputs!CT45 -> 1 | L50: =WINEP_Inputs!CU45 -> 1 | M50: =WINEP_Inputs!CV45 -> WWN+ | N50: 1
C51: =WINEP_Inputs!A46 -> NEA00722 | D51: =WINEP_Inputs!J46 -> 7NW100003 | E51: =WINEP_Inputs!K46 -> Waskerley Res - d/s dam wall - implement outcomes of Adaptive Management trials for end of AMP 7 - MM5, plus MM1, MM2, MM4, MM8 | F51: =WINEP_Inputs!CW46 -> £ million | G51: =WINEP_Inputs!CX46 -> 1 | I51: =WINEP_Inputs!CR46 -> 0.083 | J51: =WINEP_Inputs!CS46 -> 1 | K51: =WINEP_Inputs!CT46 -> 1 | L51: =WINEP_Inputs!CU46 -> 1 | M51: =WINEP_Inputs!CV46 -> WR | N51: 1
C52: =WINEP_Inputs!A47 -> NEA00723 | D52: =WINEP_Inputs!J47 -> 7NW100012 | E52: =WINEP_Inputs!K47 -> Wear Pipe crossing St Johns Chapel -fish passage MM1 | F52: =WINEP_Inputs!CW47 -> £ million | G52: =WINEP_Inputs!CX47 -> 1 | I52: =WINEP_Inputs!CR47 -> 0.176 | J52: =WINEP_Inputs!CS47 -> 1 | K52: =WINEP_Inputs!CT47 -> 1 | L52: =WINEP_Inputs!CU47 -> 1 | M52: =WINEP_Inputs!CV47 -> WR | N52: 1
C53: =WINEP_Inputs!A48 -> NEA00590 | D53: =WINEP_Inputs!J48 -> 7NW200583 | E53: =WINEP_Inputs!K48 -> Witton Gilbert | F53: =WINEP_Inputs!CW48 -> £ million | G53: =WINEP_Inputs!CX48 -> 1 | I53: =WINEP_Inputs!CR48 -> 2.724 | J53: =WINEP_Inputs!CS48 -> 1 | K53: =WINEP_Inputs!CT48 -> 1 | L53: =WINEP_Inputs!CU48 -> 1 | M53: =WINEP_Inputs!CV48 -> WWN+ | N53: 1
C54: =WINEP_Inputs!A49 -> 0 | D54: =WINEP_Inputs!J49 -> 0 | E54: =WINEP_Inputs!K49 -> 0 | F54: =WINEP_Inputs!CW49 -> 0 | G54: =WINEP_Inputs!CX49 -> 0 | I54: =WINEP_Inputs!CR49 -> 0 | J54: =WINEP_Inputs!CS49 -> 0 | K54: =WINEP_Inputs!CT49 -> 0 | L54: =WINEP_Inputs!CU49 -> 0 | M54: =WINEP_Inputs!CV49 -> 0 | N54: 0
A99: End of sheet

Sheet WINEP_Allowance
A1: =RIGHT(CELL("filename", $A$1), LEN(CELL("filename", $A$1)) - SEARCH("]", CELL("filename", $A$1))) -> WINEP_Allowance
F2: =Check!F2 -> 0 | G2: Checks
F3: =Check!F3 -> 3 | G3: Track chgs
A5: CALCULATION OF ADJUSTED ALLOWED COST FOR CONFIRMED SCHEMES
A7: List of Amber Schemes
B8: Calculate the adjusted allowed cost per scheme, £m and the WINEP reconciliation per control, £m
R9: WR | S9: WN | T9: WWN | U9: BR | V9: DMY
C10: =WINEP_Schemes!C9 -> WINEPID | D10: =WINEP_Schemes!D9 -> Unique ID | E10: =WINEP_Schemes!E9 -> Scheme category / name | F10: =WINEP_Schemes!F9 -> Unit | G10: =WINEP_Schemes!G9 -> Unit Conversion to £m | H10: =WINEP_Schemes!H9 -> 0 | I10: =WINEP_Schemes!J9 -> Quantity in PR19 FD | J10: =WINEP_Schemes!I9 -> Allowed totex unit rate | K10: =WINEP_Schemes!K9 -> Quantity Delivered | L10: =WINEP_Schemes!L9 -> 1 = In FD, funded 0 = In FD, not funded | M10: =WINEP_Schemes!M9 -> Price Control | N10: =WINEP_Schemes!N9 -> Proportion Confirmed | O10: FD Allowance, £m | P10: Adjusted Allowance (Delivered), £m | Q10: WINEP Reconciliation, £m | R10: Water Resources £m | S10: Water Network £m | T10: Wastewater Network £m | U10: Bioresources £m | V10: Dummy £m
C11: =WINEP_Schemes!C10 -> EAN00324 | D11: =WINEP_Schemes!D10 -> 7ES100130 | E11: =WINEP_Schemes!E10 -> LANGHAM A, B, C & E | F11: =WINEP_Schemes!F10 -> 0 | G11: =WINEP_Schemes!G10 -> 0 | H11: =WINEP_Schemes!H10 -> 0 | I11: =WINEP_Schemes!J10 -> 1 | J11: =WINEP_Schemes!I10 -> 0 | K11: =WINEP_Schemes!K10 -> 1 | L11: =WINEP_Schemes!L10 -> 1 | M11: =WINEP_Schemes!M10 -> 0 | N11: =WINEP_Schemes!N10 -> 1 | O11: =I11 * J11 * G11 -> 0 | P11: =N11 * O11 -> 0 | Q11: =IF(L11 = 0, P11, (N11 - 1) * O11) -> 0 | R11: =IF($M11 = R$9, $Q11, 0) -> 0 | S11: =IF($M11 = S$9, $Q11, 0) -> 0 | T11: =IF($M11 = T$9, $Q11, 0) -> 0 | U11: =IF($M11 = U$9, $Q11, 0) -> 0 | V11: =IF($M11 = V$9, $Q11, 0) -> 0
C12: =WINEP_Schemes!C11 -> EAN00401 | D12: =WINEP_Schemes!D11 -> 7ES200010 | E12: =WINEP_Schemes!E11 -> Eel measures at Ormesby Broad | F12: =WINEP_Schemes!F11 -> £ million | G12: =WINEP_Schemes!G11 -> 1 | H12: =WINEP_Schemes!H11 -> 0 | I12: =WINEP_Schemes!J11 -> 1 | J12: =WINEP_Schemes!I11 -> 0 | K12: =WINEP_Schemes!K11 -> 1 | L12: =WINEP_Schemes!L11 -> 1 | M12: =WINEP_Schemes!M11 -> WR | N12: =WINEP_Schemes!N11 -> 1 | O12: =I12 * J12 * G12 -> 0 | P12: =N12 * O12 -> 0 | Q12: =IF(L12 = 0, P12, (N12 - 1) * O12) -> 0 | R12: =IF($M12 = R$9, $Q12, 0) -> 0 | S12: 0 | T12: 0 | U12: 0 | V12: 0
C13: =WINEP_Schemes!C12 -> NEA00013 | D13: =WINEP_Schemes!D12 -> 7NW200012 | E13: =WINEP_Schemes!E12 -> Aldin Grange | F13: =WINEP_Schemes!F12 -> £ million | G13: =WINEP_Schemes!G12 -> 1 | H13: =WINEP_Schemes!H12 -> 0 | I13: =WINEP_Schemes!J12 -> 1 | J13: =WINEP_Schemes!I12 -> 3.126 | K13: =WINEP_Schemes!K12 -> 1 | L13: =WINEP_Schemes!L12 -> 1 | M13: =WINEP_Schemes!M12 -> WWN+ | N13: =WINEP_Schemes!N12 -> 1 | O13: =I13 * J13 * G13 -> 3.126 | P13: =N13 * O13 -> 3.126 | Q13: =IF(L13 = 0, P13, (N13 - 1) * O13) -> 0 | R13: 0 | S13: 0 | T13: 0 | U13: 0 | V13: 0
C14: =WINEP_Schemes!C13 -> NEA00702 | D14: =WINEP_Schemes!D13 -> 7NW100001 | E14: =WINEP_Schemes!E13 -> Balder - d/s Hury Resvoir dam wall - - continue AMP 6 adaptive management trial putting seasonality to compensation release then implement end of AMP 7 - MM5, MM2, MM7 and MM8 | F14: =WINEP_Schemes!F13 -> £ million | G14: =WINEP_Schemes!G13 -> 1 | H14: =WINEP_Schemes!H13 -> 0 | I14: =WINEP_Schemes!J13 -> 1 | J14: =WINEP_Schemes!I13 -> 0.083 | K14: =WINEP_Schemes!K13 -> 1 | L14: =WINEP_Schemes!L13 -> 1 | M14: =WINEP_Schemes!M13 -> WR | N14: =WINEP_Schemes!N13 -> 1 | O14: =I14 * J14 * G14 -> 0.083 | P14: =N14 * O14 -> 0.083 | Q14: =IF(L14 = 0, P14, (N14 - 1) * O14) -> 0 | R14: 0 | S14: 0 | T14: 0 | U14: 0 | V14: 0
C15: =WINEP_Schemes!C14 -> NEA00703 | D15: =WINEP_Schemes!D14 -> 7NW10005 | E15: =WINEP_Schemes!E14 -> Barrasford raw water pumping station - Rede to Gunnerton Burn, Barrasford to S Tyne, Watersmeet to Tidal Limit - Eels Regs and MM3 | F15: =WINEP_Schemes!F14 -> £ million | G15: =WINEP_Schemes!G14 -> 1 | H15: =WINEP_Schemes!H14 -> 0 | I15: =WINEP_Schemes!J14 -> 1 | J15: =WINEP_Schemes!I14 -> 1.071 | K15: =WINEP_Schemes!K14 -> 0 | L15: =WINEP_Schemes!L14 -> 1 | M15: =WINEP_Schemes!M14 -> WR | N15: =WINEP_Schemes!N14 -> 0 | O15: 1.071 | P15: 0 | Q15: -1.071 | R15: -1.071 | S15: 0 | T15: 0 | U15: 0 | V15: 0
C16: =WINEP_Schemes!C15 -> NEA00047 | D16: =WINEP_Schemes!D15 -> 7NW200044 | E16: =WINEP_Schemes!E15 -> Bishop Middleham | F16: =WINEP_Schemes!F15 -> £ million | G16: =WINEP_Schemes!G15 -> 1 | H16: =WINEP_Schemes!H15 -> 0 | I16: =WINEP_Schemes!J15 -> 1 | J16: =WINEP_Schemes!I15 -> 1.895 | K16: =WINEP_Schemes!K15 -> 1 | L16: =WINEP_Schemes!L15 -> 1 | M16: =WINEP_Schemes!M15 -> WWN+ | N16: =WINEP_Schemes!N15 -> 1 | O16: 1.895 | P16: 1.895 | Q16: 0 | R16: 0 | S16: 0 | T16: 0 | U16: 0 | V16: 0
C17: =WINEP_Schemes!C16 -> NEA00706 | D17: =WINEP_Schemes!D16 -> 7NW10088 | E17: =WINEP_Schemes!E16 -> BLACK BURN catchwater, feeds into Burnhope Burn d/s of Catchwater . 100% take. MM5, MM7 | F17: =WINEP_Schemes!F16 -> £ million | G17: =WINEP_Schemes!G16 -> 1 | H17: =WINEP_Schemes!H16 -> 0 | I17: =WINEP_Schemes!J16 -> 1 | J17: =WINEP_Schemes!I16 -> 0.133 | K17: =WINEP_Schemes!K16 -> 1 | L17: =WINEP_Schemes!L16 -> 1 | M17: =WINEP_Schemes!M16 -> WR | N17: =WINEP_Schemes!N16 -> 1 | O17: =I17 * J17 * G17 -> 0.133 | P17: =N17 * O17 -> 0.133 | Q17: =IF(L17 = 0, P17, (N17 - 1) * O17) -> 0 | R17: 0 | S17: 0 | T17: 0 | U17: 0 | V17: 0
C18: =WINEP_Schemes!C17 -> NEA00054 | D18: =WINEP_Schemes!D17 -> 7NW200051 | E18: =WINEP_Schemes!E17 -> Bowburn | F18: =WINEP_Schemes!F17 -> £ million | G18: =WINEP_Schemes!G17 -> 1 | H18: =WINEP_Schemes!H17 -> 0 | I18: =WINEP_Schemes!J17 -> 1 | J18: =WINEP_Schemes!I17 -> 0 | K18: =WINEP_Schemes!K17 -> 1 | L18: =WINEP_Schemes!L17 -> 1 | M18: =WINEP_Schemes!M17 -> WWN+ | N18: =WINEP_Schemes!N17 -> 1 | O18: 0 | P18: 0 | Q18: 0 | R18: 0 | S18: 0 | T18: 0 | U18: 0 | V18: 0
C19: =WINEP_Schemes!C18 -> NEA00060 | D19: =WINEP_Schemes!D18 -> 7NW200057 | E19: =WINEP_Schemes!E18 -> Browney | F19: =WINEP_Schemes!F18 -> £ million | G19: =WINEP_Schemes!G18 -> 1 | H19: =WINEP_Schemes!H18 -> 0 | I19: =WINEP_Schemes!J18 -> 1 | J19: =WINEP_Schemes!I18 -> 0.14 | K19: =WINEP_Schemes!K18 -> 1 | L19: =WINEP_Schemes!L18 -> 1 | M19: =WINEP_Schemes!M18 -> WWN+ | N19: =WINEP_Schemes!N18 -> 1 | O19: 0.14 | P19: 0.14 | Q19: 0 | R19: 0 | S19: 0 | T19: 0 | U19: 0 | V19: 0
C20: =WINEP_Schemes!C19 -> NEA00707 | D20: =WINEP_Schemes!D19 -> 7NW10009 | E20: =WINEP_Schemes!E19 -> Burnhope Burn catchwater to River Derwent MM1 and MM2 , MM5, MM7 | F20: =WINEP_Schemes!F19 -> £ million | G20: =WINEP_Schemes!G19 -> 1 | H20: =WINEP_Schemes!H19 -> 0 | I20: =WINEP_Schemes!J19 -> 1 | J20: =WINEP_Schemes!I19 -> 0.243 | K20: =WINEP_Schemes!K19 -> 1 | L20: =WINEP_Schemes!L19 -> 1 | M20: =WINEP_Schemes!M19 -> WR | N20: =WINEP_Schemes!N19 -> 1 | O20: 0.243 | P20: 0.243 | Q20: 0 | R20: 0 | S20: 0 | T20: 0 | U20: 0 | V20: 0
C21: =WINEP_Schemes!C20 -> NEA00068 | D21: =WINEP_Schemes!D20 -> 7NW200065 | E21: =WINEP_Schemes!E20 -> Carlton Redmarshall | F21: =WINEP_Schemes!F20 -> £ million | G21: =WINEP_Schemes!G20 -> 1 | H21: =WINEP_Schemes!H20 -> 0 | I21: =WINEP_Schemes!J20 -> 1 | J21: =WINEP_Schemes!I20 -> 3.185 | K21: =WINEP_Schemes!K20 -> 1 | L21: =WINEP_Schemes!L20 -> 1 | M21: =WINEP_Schemes!M20 -> WWN+ | N21: =WINEP_Schemes!N20 -> 1 | O21: 3.185 | P21: 3.185 | Q21: 0 | R21: 0 | S21: 0 | T21: 0 | U21: 0 | V21: 0
C22: =WINEP_Schemes!C21 -> NEA00070 | D22: =WINEP_Schemes!D21 -> 7NW200067 | E22: =WINEP_Schemes!E21 -> Chilton Lane | F22: =WINEP_Schemes!F21 -> £ million | G22: =WINEP_Schemes!G21 -> 1 | H22: =WINEP_Schemes!H21 -> 0 | I22: =WINEP_Schemes!J21 -> 1 | J22: =WINEP_Schemes!I21 -> 3.226 | K22: =WINEP_Schemes!K21 -> 1 | L22: =WINEP_Schemes!L21 -> 1 | M22: =WINEP_Schemes!M21 -> WWN+ | N22: =WINEP_Schemes!N21 -> 1 | O22: 3.226 | P22: 3.226 | Q22: 0 | R22: 0 | S22: 0 | T22: 0 | U22: 0 | V22: 0
C23: =WINEP_Schemes!C22 -> NEA00074 | D23: =WINEP_Schemes!D22 -> 7NW200071 | E23: =WINEP_Schemes!E22 -> Crookhall | F23: =WINEP_Schemes!F22 -> £ million | G23: =WINEP_Schemes!G22 -> 1 | H23: =WINEP_Schemes!H22 -> 0 | I23: =WINEP_Schemes!J22 -> 1 | J23: =WINEP_Schemes!I22 -> 1.385 | K23: =WINEP_Schemes!K22 -> 1 | L23: =WINEP_Schemes!L22 -> 1 | M23: =WINEP_Schemes!M22 -> WWN+ | N23: =WINEP_Schemes!N22 -> 1 | O23: 1.385 | P23: 1.385 | Q23: 0 | R23: 0 | S23: 0 | T23: 0 | U23: 0 | V23: 0
C24: =WINEP_Schemes!C23 -> NEA00081 | D24: =WINEP_Schemes!D23 -> 7NW200078 | E24: =WINEP_Schemes!E23 -> Dipton | F24: =WINEP_Schemes!F23 -> £ million | G24: =WINEP_Schemes!G23 -> 1 | H24: =WINEP_Schemes!H23 -> 0 | I24: =WINEP_Schemes!J23 -> 1 | J24: =WINEP_Schemes!I23 -> 1.962 | K24: =WINEP_Schemes!K23 -> 1 | L24: =WINEP_Schemes!L23 -> 1 | M24: =WINEP_Schemes!M23 -> WWN+ | N24: =WINEP_Schemes!N23 -> 1 | O24: 1.962 | P24: 1.962 | Q24: 0 | R24: 0 | S24: 0 | T24: 0 | U24: 0 | V24: 0
C25: =WINEP_Schemes!C24 -> NEA00089 | D25: =WINEP_Schemes!D24 -> 7NW200086 | E25: =WINEP_Schemes!E24 -> Esh Winning | F25: =WINEP_Schemes!F24 -> £ million | G25: =WINEP_Schemes!G24 -> 1 | H25: =WINEP_Schemes!H24 -> 0 | I25: =WINEP_Schemes!J24 -> 1 | J25: =WINEP_Schemes!I24 -> 0 | K25: =WINEP_Schemes!K24 -> 1 | L25: =WINEP_Schemes!L24 -> 1 | M25: =WINEP_Schemes!M24 -> WWN+ | N25: =WINEP_Schemes!N24 -> 1 | O25: 0 | P25: 0 | Q25: 0 | R25: 0 | S25: 0 | T25: 0 | U25: 0 | V25: 0
C26: =WINEP_Schemes!C25 -> NEA00093 | D26: =WINEP_Schemes!D25 -> 7NW200089 | E26: =WINEP_Schemes!E25 -> Fishburn | F26: =WINEP_Schemes!F25 -> £ million | G26: =WINEP_Schemes!G25 -> 1 | H26: =WINEP_Schemes!H25 -> 0 | I26: =WINEP_Schemes!J25 -> 1 | J26: =WINEP_Schemes!I25 -> 2.403 | K26: =WINEP_Schemes!K25 -> 1 | L26: =WINEP_Schemes!L25 -> 1 | M26: =WINEP_Schemes!M25 -> WWN+ | N26: =WINEP_Schemes!N25 -> 1 | O26: 2.403 | P26: 2.403 | Q26: 0 | R26: 0 | S26: 0 | T26: 0 | U26: 0 | V26: 0
C27: =WINEP_Schemes!C26 -> NEA00710 | D27: =WINEP_Schemes!D26 -> 7NW100011 | E27: =WINEP_Schemes!E26 -> Harthope burn catchwater - Water supply asset - MM1 and MM7 | F27: =WINEP_Schemes!F26 -> £ million | G27: =WINEP_Schemes!G26 -> 1 | H27: =WINEP_Schemes!H26 -> 0 | I27: =WINEP_Schemes!J26 -> 1 | J27: =WINEP_Schemes!I26 -> 0.176 | K27: =WINEP_Schemes!K26 -> 1 | L27: =WINEP_Schemes!L26 -> 1 | M27: =WINEP_Schemes!M26 -> WR | N27: =WINEP_Schemes!N26 -> 1 | O27: 0.176 | P27: 0.176 | Q27: 0 | R27: 0 | S27: 0 | T27: 0 | U27: 0 | V27: 0
C28: =WINEP_Schemes!C27 -> NEA00115 | D28: =WINEP_Schemes!D27 -> 7NW200110 | E28: =WINEP_Schemes!E27 -> Hustledown STW (CIP2 T1) | F28: =WINEP_Schemes!F27 -> £ million | G28: =WINEP_Schemes!G27 -> 1 | H28: =WINEP_Schemes!H27 -> 0 | I28: =WINEP_Schemes!J27 -> 1 | J28: =WINEP_Schemes!I27 -> 4.505 | K28: =WINEP_Schemes!K27 -> 1 | L28: =WINEP_Schemes!L27 -> 1 | M28: =WINEP_Schemes!M27 -> WWN+ | N28: =WINEP_Schemes!N27 -> 1 | O28: 4.505 | P28: 4.505 | Q28: 0 | R28: =IF($M28 = R$9, $Q28, 0) -> 0 | S28: 0 | T28: 0 | U28: 0 | V28: 0
C29: =WINEP_Schemes!C28 -> NEA00117 | D29: =WINEP_Schemes!D28 -> 7NW200112 | E29: =WINEP_Schemes!E28 -> Hustledown STW (CIP2 T1) | F29: =WINEP_Schemes!F28 -> £ million | G29: =WINEP_Schemes!G28 -> 1 | H29: =WINEP_Schemes!H28 -> 0 | I29: =WINEP_Schemes!J28 -> 1 | J29: =WINEP_Schemes!I28 -> 0 | K29: =WINEP_Schemes!K28 -> 1 | L29: =WINEP_Schemes!L28 -> 1 | M29: =WINEP_Schemes!M28 -> WWN+ | N29: =WINEP_Schemes!N28 -> 1 | O29: 0 | P29: 0 | Q29: 0 | R29: 0 | S29: 0 | T29: 0 | U29: 0 | V29: 0
C30: =WINEP_Schemes!C29 -> NEA00711 | D30: =WINEP_Schemes!D29 -> 7NW100013 | E30: =WINEP_Schemes!E29 -> Ireshope - Wham pasture MM1. MM7 Burnhope res supply | F30: =WINEP_Schemes!F29 -> £ million | G30: =WINEP_Schemes!G29 -> 1 | H30: =WINEP_Schemes!H29 -> 0 | I30: =WINEP_Schemes!J29 -> 1 | J30: =WINEP_Schemes!I29 -> 0.176 | K30: =WINEP_Schemes!K29 -> 1 | L30: =WINEP_Schemes!L29 -> 1 | M30: =WINEP_Schemes!M29 -> WR | N30: =WINEP_Schemes!N29 -> 1 | O30: 0.176 | P30: 0.176 | Q30: 0 | R30: 0 | S30: 0 | T30: 0 | U30: 0 | V30: 0
C31: =WINEP_Schemes!C30 -> NEA00712 | D31: =WINEP_Schemes!D30 -> 7NW100014 | E31: =WINEP_Schemes!E30 -> Ireshope Burn - Greenwell Crags - MM1, MM7 Burnhope res supply | F31: =WINEP_Schemes!F30 -> £ million | G31: =WINEP_Schemes!G30 -> 1 | H31: =WINEP_Schemes!H30 -> 0 | I31: =WINEP_Schemes!J30 -> 1 | J31: =WINEP_Schemes!I30 -> 0.176 | K31: =WINEP_Schemes!K30 -> 1 | L31: =WINEP_Schemes!L30 -> 1 | M31: =WINEP_Schemes!M30 -> WR | N31: =WINEP_Schemes!N30 -> 1 | O31: 0.176 | P31: 0.176 | Q31: 0 | R31: 0 | S31: 0 | T31: 0 | U31: 0 | V31: 0
C32: =WINEP_Schemes!C31 -> NEA00466 | D32: =WINEP_Schemes!D31 -> 7NW200461 | E32: =WINEP_Schemes!E31 -> Kelloe | F32: =WINEP_Schemes!F31 -> £ million | G32: =WINEP_Schemes!G31 -> 1 | H32: =WINEP_Schemes!H31 -> 0 | I32: =WINEP_Schemes!J31 -> 1 | J32: =WINEP_Schemes!I31 -> 2.169 | K32: =WINEP_Schemes!K31 -> 1 | L32: =WINEP_Schemes!L31 -> 1 | M32: =WINEP_Schemes!M31 -> WWN+ | N32: =WINEP_Schemes!N31 -> 1 | O32: 2.169 | P32: 2.169 | Q32: 0 | R32: 0 | S32: 0 | T32: 0 | U32: 0 | V32: 0
C33: =WINEP_Schemes!C32 -> NEA00468 | D33: =WINEP_Schemes!D32 -> 7NW200463 | E33: =WINEP_Schemes!E32 -> Kirklevington STW | F33: =WINEP_Schemes!F32 -> £ million | G33: =WINEP_Schemes!G32 -> 1 | H33: =WINEP_Schemes!H32 -> 0 | I33: =WINEP_Schemes!J32 -> 1 | J33: =WINEP_Schemes!I32 -> 3.102 | K33: =WINEP_Schemes!K32 -> 1 | L33: =WINEP_Schemes!L32 -> 1 | M33: =WINEP_Schemes!M32 -> WWN+ | N33: =WINEP_Schemes!N32 -> 1 | O33: 3.102 | P33: 3.102 | Q33: 0 | R33: 0 | S33: 0 | T33: 0 | U33: 0 | V33: 0
C34: =WINEP_Schemes!C33 -> NEA00469 | D34: =WINEP_Schemes!D33 -> 7NW200464 | E34: =WINEP_Schemes!E33 -> Knitsley | F34: =WINEP_Schemes!F33 -> £ million | G34: =WINEP_Schemes!G33 -> 1 | H34: =WINEP_Schemes!H33 -> 0 | I34: =WINEP_Schemes!J33 -> 1 | J34: =WINEP_Schemes!I33 -> 3.622 | K34: =WINEP_Schemes!K33 -> 1 | L34: =WINEP_Schemes!L33 -> 1 | M34: =WINEP_Schemes!M33 -> WWN+ | N34: =WINEP_Schemes!N33 -> 1 | O34: 3.622 | P34: 3.622 | Q34: 0 | R34: 0 | S34: 0 | T34: 0 | U34: 0 | V34: 0
C35: =WINEP_Schemes!C34 -> NEA00470 | D35: =WINEP_Schemes!D34 -> 7NW200465 | E35: =WINEP_Schemes!E34 -> Lanchester | F35: =WINEP_Schemes!F34 -> £ million | G35: =WINEP_Schemes!G34 -> 1 | H35: =WINEP_Schemes!H34 -> 0 | I35: =WINEP_Schemes!J34 -> 1 | J35: =WINEP_Schemes!I34 -> 4.325 | K35: =WINEP_Schemes!K34 -> 1 | L35: =WINEP_Schemes!L34 -> 1 | M35: =WINEP_Schemes!M34 -> WWN+ | N35: =WINEP_Schemes!N34 -> 1 | O35: 4.325 | P35: 4.325 | Q35: 0 | R35: 0 | S35: 0 | T35: 0 | U35: 0 | V35: 0
C36: =WINEP_Schemes!C35 -> NEA00477 | D36: =WINEP_Schemes!D35 -> 7NW200472 | E36: =WINEP_Schemes!E35 -> Longnewton | F36: =WINEP_Schemes!F35 -> £ million | G36: =WINEP_Schemes!G35 -> 1 | H36: =WINEP_Schemes!H35 -> 0 | I36: =WINEP_Schemes!J35 -> 1 | J36: =WINEP_Schemes!I35 -> 3.06 | K36: =WINEP_Schemes!K35 -> 1 | L36: =WINEP_Schemes!L35 -> 1 | M36: =WINEP_Schemes!M35 -> WWN+ | N36: =WINEP_Schemes!N35 -> 1 | O36: 3.06 | P36: 3.06 | Q36: 0 | R36: 0 | S36: 0 | T36: 0 | U36: 0 | V36: 0
C37: =WINEP_Schemes!C36 -> NEA00713 | D37: =WINEP_Schemes!D36 -> 7NW100002 | E37: =WINEP_Schemes!E36 -> Lune - Grassholme Res Dam wall - continue AMP 6 adaptive management trial putting seasonality to compensation release then implement end of AMP 7 - MM5, MM2, MM7 amd MM8 | F37: =WINEP_Schemes!F36 -> £ million | G37: =WINEP_Schemes!G36 -> 1 | H37: =WINEP_Schemes!H36 -> 0 | I37: =WINEP_Schemes!J36 -> 1 | J37: =WINEP_Schemes!I36 -> 0.083 | K37: =WINEP_Schemes!K36 -> 1 | L37: =WINEP_Schemes!L36 -> 1 | M37: =WINEP_Schemes!M36 -> WR | N37: =WINEP_Schemes!N36 -> 1 | O37: 0.083 | P37: 0.083 | Q37: 0 | R37: 0 | S37: 0 | T37: 0 | U37: 0 | V37: 0
C38: =WINEP_Schemes!C37 -> NEA00499 | D38: =WINEP_Schemes!D37 -> 7NW200494 | E38: =WINEP_Schemes!E37 -> New Moors | F38: =WINEP_Schemes!F37 -> £ million | G38: =WINEP_Schemes!G37 -> 1 | H38: =WINEP_Schemes!H37 -> 0 | I38: =WINEP_Schemes!J37 -> 1 | J38: =WINEP_Schemes!I37 -> 3.551 | K38: =WINEP_Schemes!K37 -> 1 | L38: =WINEP_Schemes!L37 -> 1 | M38: =WINEP_Schemes!M37 -> WWN+ | N38: =WINEP_Schemes!N37 -> 1 | O38: 3.551 | P38: 3.551 | Q38: 0 | R38: 0 | S38: 0 | T38: 0 | U38: 0 | V38: 0
C39: =WINEP_Schemes!C38 -> NEA00512 | D39: =WINEP_Schemes!D38 -> 7NW200507 | E39: =WINEP_Schemes!E38 -> Pittington | F39: =WINEP_Schemes!F38 -> £ million | G39: =WINEP_Schemes!G38 -> 1 | H39: =WINEP_Schemes!H38 -> 0 | I39: =WINEP_Schemes!J38 -> 1 | J39: =WINEP_Schemes!I38 -> 3.102 | K39: =WINEP_Schemes!K38 -> 1 | L39: =WINEP_Schemes!L38 -> 1 | M39: =WINEP_Schemes!M38 -> WWN+ | N39: =WINEP_Schemes!N38 -> 1 | O39: 3.102 | P39: 3.102 | Q39: 0 | R39: 0 | S39: 0 | T39: 0 | U39: 0 | V39: 0
C40: =WINEP_Schemes!C39 -> NEA00513 | D40: =WINEP_Schemes!D39 -> 7NW200508 | E40: =WINEP_Schemes!E39 -> Pity Me | F40: =WINEP_Schemes!F39 -> £ million | G40: =WINEP_Schemes!G39 -> 1 | H40: =WINEP_Schemes!H39 -> 0 | I40: =WINEP_Schemes!J39 -> 1 | J40: =WINEP_Schemes!I39 -> 3.995 | K40: =WINEP_Schemes!K39 -> 1 | L40: =WINEP_Schemes!L39 -> 1 | M40: =WINEP_Schemes!M39 -> WWN+ | N40: =WINEP_Schemes!N39 -> 1 | O40: 3.995 | P40: 3.995 | Q40: 0 | R40: 0 | S40: 0 | T40: 0 | U40: 0 | V40: 0
C41: =WINEP_Schemes!C40 -> NEA00514 | D41: =WINEP_Schemes!D40 -> 7NW200509 | E41: =WINEP_Schemes!E40 -> Plawsworth | F41: =WINEP_Schemes!F40 -> £ million | G41: =WINEP_Schemes!G40 -> 1 | H41: =WINEP_Schemes!H40 -> 0 | I41: =WINEP_Schemes!J40 -> 1 | J41: =WINEP_Schemes!I40 -> 3.095 | K41: =WINEP_Schemes!K40 -> 1 | L41: =WINEP_Schemes!L40 -> 1 | M41: =WINEP_Schemes!M40 -> WWN+ | N41: =WINEP_Schemes!N40 -> 1 | O41: 3.095 | P41: 3.095 | Q41: 0 | R41: 0 | S41: 0 | T41: 0 | U41: 0 | V41: 0
C42: =WINEP_Schemes!C41 -> NEA00716 | D42: =WINEP_Schemes!D41 -> 7NW10006 | E42: =WINEP_Schemes!E41 -> Pont - channel d/s of sluice - MM6 and MM7 | F42: =WINEP_Schemes!F41 -> £ million | G42: =WINEP_Schemes!G41 -> 1 | H42: =WINEP_Schemes!H41 -> 0 | I42: =WINEP_Schemes!J41 -> 1 | J42: =WINEP_Schemes!I41 -> 0.149 | K42: =WINEP_Schemes!K41 -> 1 | L42: =WINEP_Schemes!L41 -> 1 | M42: =WINEP_Schemes!M41 -> WR | N42: =WINEP_Schemes!N41 -> 1 | O42: 0.149 | P42: 0.149 | Q42: 0 | R42: 0 | S42: 0 | T42: 0 | U42: 0 | V42: 0
C43: =WINEP_Schemes!C42 -> NEA00717 | D43: =WINEP_Schemes!D42 -> 7NW100016 | E43: =WINEP_Schemes!E42 -> River Derwent - implement outcomes of Adaptive Management trials for end of AMP 7 - MM5 | F43: =WINEP_Schemes!F42 -> £ million | G43: =WINEP_Schemes!G42 -> 1 | H43: =WINEP_Schemes!H42 -> 0 | I43: =WINEP_Schemes!J42 -> 1 | J43: =WINEP_Schemes!I42 -> 0.083 | K43: =WINEP_Schemes!K42 -> 1 | L43: =WINEP_Schemes!L42 -> 1 | M43: =WINEP_Schemes!M42 -> WR | N43: =WINEP_Schemes!N42 -> 1 | O43: 0.083 | P43: 0.083 | Q43: 0 | R43: 0 | S43: 0 | T43: 0 | U43: 0 | V43: 0
C44: =WINEP_Schemes!C43 -> NEA00526 | D44: =WINEP_Schemes!D43 -> 7NW200521 | E44: =WINEP_Schemes!E43 -> Sacriston | F44: =WINEP_Schemes!F43 -> £ million | G44: =WINEP_Schemes!G43 -> 1 | H44: =WINEP_Schemes!H43 -> 0 | I44: =WINEP_Schemes!J43 -> 1 | J44: =WINEP_Schemes!I43 -> 4.002 | K44: =WINEP_Schemes!K43 -> 1 | L44: =WINEP_Schemes!L43 -> 1 | M44: =WINEP_Schemes!M43 -> WWN+ | N44: =WINEP_Schemes!N43 -> 1 | O44: 4.002 | P44: 4.002 | Q44: 0 | R44: 0 | S44: 0 | T44: 0 | U44: 0 | V44: 0
C45: =WINEP_Schemes!C44 -> NEA00529 | D45: =WINEP_Schemes!D44 -> 7NW200524 | E45: =WINEP_Schemes!E44 -> Sedgefield | F45: =WINEP_Schemes!F44 -> £ million | G45: =WINEP_Schemes!G44 -> 1 | H45: =WINEP_Schemes!H44 -> 0 | I45: =WINEP_Schemes!J44 -> 1 | J45: =WINEP_Schemes!I44 -> 3.564 | K45: =WINEP_Schemes!K44 -> 1 | L45: =WINEP_Schemes!L44 -> 1 | M45: =WINEP_Schemes!M44 -> WWN+ | N45: =WINEP_Schemes!N44 -> 1 | O45: 3.564 | P45: 3.564 | Q45: 0 | R45: 0 | S45: 0 | T45: 0 | U45: 0 | V45: 0
C46: =WINEP_Schemes!C45 -> NEA00530 | D46: =WINEP_Schemes!D45 -> 7NW200525 | E46: =WINEP_Schemes!E45 -> Sedgeletch | F46: =WINEP_Schemes!F45 -> £ million | G46: =WINEP_Schemes!G45 -> 1 | H46: =WINEP_Schemes!H45 -> 0 | I46: =WINEP_Schemes!J45 -> 1 | J46: =WINEP_Schemes!I45 -> 4.668 | K46: =WINEP_Schemes!K45 -> 1 | L46: =WINEP_Schemes!L45 -> 1 | M46: =WINEP_Schemes!M45 -> WWN+ | N46: =WINEP_Schemes!N45 -> 1 | O46: 4.668 | P46: 4.668 | Q46: 0 | R46: 0 | S46: 0 | T46: 0 | U46: 0 | V46: 0
C47: =WINEP_Schemes!C46 -> NEA00532 | D47: =WINEP_Schemes!D46 -> 7NW200527 | E47: =WINEP_Schemes!E46 -> Sherburn | F47: =WINEP_Schemes!F46 -> £ million | G47: =WINEP_Schemes!G46 -> 1 | H47: =WINEP_Schemes!H46 -> 0 | I47: =WINEP_Schemes!J46 -> 1 | J47: =WINEP_Schemes!I46 -> 3.349 | K47: =WINEP_Schemes!K46 -> 1 | L47: =WINEP_Schemes!L46 -> 1 | M47: =WINEP_Schemes!M46 -> WWN+ | N47: =WINEP_Schemes!N46 -> 1 | O47: 3.349 | P47: 3.349 | Q47: 0 | R47: 0 | S47: 0 | T47: 0 | U47: 0 | V47: 0
C48: =WINEP_Schemes!C47 -> NEA00536 | D48: =WINEP_Schemes!D47 -> 7NW200531 | E48: =WINEP_Schemes!E47 -> Slaley - in combination effect with De Vere Hotel | F48: =WINEP_Schemes!F47 -> £ million | G48: =WINEP_Schemes!G47 -> 1 | H48: =WINEP_Schemes!H47 -> 0 | I48: =WINEP_Schemes!J47 -> 1 | J48: =WINEP_Schemes!I47 -> 1.805 | K48: =WINEP_Schemes!K47 -> 1 | L48: =WINEP_Schemes!L47 -> 1 | M48: =WINEP_Schemes!M47 -> WWN+ | N48: =WINEP_Schemes!N47 -> 1 | O48: 1.805 | P48: 1.805 | Q48: 0 | R48: 0 | S48: 0 | T48: 0 | U48: 0 | V48: 0
C49: =WINEP_Schemes!C48 -> NEA00720 | D49: =WINEP_Schemes!D48 -> 7NW100017 | E49: =WINEP_Schemes!E48 -> Smiddy Shaw and Hisehope reservoirs Surface Water Transfer , MM5, MM7 and MM8 | F49: =WINEP_Schemes!F48 -> £ million | G49: =WINEP_Schemes!G48 -> 1 | H49: =WINEP_Schemes!H48 -> 0 | I49: =WINEP_Schemes!J48 -> 1 | J49: =WINEP_Schemes!I48 -> 0.083 | K49: =WINEP_Schemes!K48 -> 1 | L49: =WINEP_Schemes!L48 -> 1 | M49: =WINEP_Schemes!M48 -> WR | N49: =WINEP_Schemes!N48 -> 1 | O49: 0.083 | P49: 0.083 | Q49: 0 | R49: 0 | S49: 0 | T49: 0 | U49: 0 | V49: 0
C50: =WINEP_Schemes!C49 -> NEA00563 | D50: =WINEP_Schemes!D49 -> 7NW200556 | E50: =WINEP_Schemes!E49 -> Teeside Airport | F50: =WINEP_Schemes!F49 -> £ million | G50: =WINEP_Schemes!G49 -> 1 | H50: =WINEP_Schemes!H49 -> 0 | I50: =WINEP_Schemes!J49 -> 1 | J50: =WINEP_Schemes!I49 -> 3.884 | K50: =WINEP_Schemes!K49 -> 1 | L50: =WINEP_Schemes!L49 -> 1 | M50: =WINEP_Schemes!M49 -> WWN+ | N50: =WINEP_Schemes!N49 -> 1 | O50: 3.884 | P50: 3.884 | Q50: 0 | R50: 0 | S50: 0 | T50: 0 | U50: 0 | V50: 0
C51: =WINEP_Schemes!C50 -> NEA00575 | D51: =WINEP_Schemes!D50 -> 7NW200568 | E51: =WINEP_Schemes!E50 -> Trimdon | F51: =WINEP_Schemes!F50 -> £ million | G51: =WINEP_Schemes!G50 -> 1 | H51: =WINEP_Schemes!H50 -> 0 | I51: =WINEP_Schemes!J50 -> 1 | J51: =WINEP_Schemes!I50 -> 4.265 | K51: =WINEP_Schemes!K50 -> 1 | L51: =WINEP_Schemes!L50 -> 1 | M51: =WINEP_Schemes!M50 -> WWN+ | N51: =WINEP_Schemes!N50 -> 1 | O51: 4.265 | P51: 4.265 | Q51: 0 | R51: 0 | S51: 0 | T51: 0 | U51: 0 | V51: 0
C52: =WINEP_Schemes!C51 -> NEA00722 | D52: =WINEP_Schemes!D51 -> 7NW100003 | E52: =WINEP_Schemes!E51 -> Waskerley Res - d/s dam wall - implement outcomes of Adaptive Management trials for end of AMP 7 - MM5, plus MM1, MM2, MM4, MM8 | F52: =WINEP_Schemes!F51 -> £ million | G52: =WINEP_Schemes!G51 -> 1 | H52: =WINEP_Schemes!H51 -> 0 | I52: =WINEP_Schemes!J51 -> 1 | J52: =WINEP_Schemes!I51 -> 0.083 | K52: =WINEP_Schemes!K51 -> 1 | L52: =WINEP_Schemes!L51 -> 1 | M52: =WINEP_Schemes!M51 -> WR | N52: =WINEP_Schemes!N51 -> 1 | O52: 0.083 | P52: 0.083 | Q52: 0 | R52: =IF($M52 = R$9, $Q52, 0) -> 0 | S52: 0 | T52: 0 | U52: 0 | V52: 0
C53: =WINEP_Schemes!C52 -> NEA00723 | D53: =WINEP_Schemes!D52 -> 7NW100012 | E53: =WINEP_Schemes!E52 -> Wear Pipe crossing St Johns Chapel -fish passage MM1 | F53: =WINEP_Schemes!F52 -> £ million | G53: =WINEP_Schemes!G52 -> 1 | H53: =WINEP_Schemes!H52 -> 0 | I53: =WINEP_Schemes!J52 -> 1 | J53: =WINEP_Schemes!I52 -> 0.176 | K53: =WINEP_Schemes!K52 -> 1 | L53: =WINEP_Schemes!L52 -> 1 | M53: =WINEP_Schemes!M52 -> WR | N53: =WINEP_Schemes!N52 -> 1 | O53: =I53 * J53 * G53 -> 0.176 | P53: =N53 * O53 -> 0.176 | Q53: =IF(L53 = 0, P53, (N53 - 1) * O53) -> 0 | R53: 0 | S53: 0 | T53: 0 | U53: 0 | V53: 0
C54: =WINEP_Schemes!C53 -> NEA00590 | D54: =WINEP_Schemes!D53 -> 7NW200583 | E54: =WINEP_Schemes!E53 -> Witton Gilbert | F54: =WINEP_Schemes!F53 -> £ million | G54: =WINEP_Schemes!G53 -> 1 | H54: =WINEP_Schemes!H53 -> 0 | I54: =WINEP_Schemes!J53 -> 1 | J54: =WINEP_Schemes!I53 -> 2.724 | K54: =WINEP_Schemes!K53 -> 1 | L54: =WINEP_Schemes!L53 -> 1 | M54: =WINEP_Schemes!M53 -> WWN+ | N54: =WINEP_Schemes!N53 -> 1 | O54: =I54 * J54 * G54 -> 2.724 | P54: =N54 * O54 -> 2.724 | Q54: =IF(L54 = 0, P54, (N54 - 1) * O54) -> 0 | R54: 0 | S54: 0 | T54: 0 | U54: 0 | V54: 0
C55: =WINEP_Schemes!C54 -> 0 | D55: =WINEP_Schemes!D54 -> 0 | E55: =WINEP_Schemes!E54 -> 0 | F55: =WINEP_Schemes!F54 -> 0 | G55: =WINEP_Schemes!G54 -> 0 | H55: =WINEP_Schemes!H54 -> 0 | I55: =WINEP_Schemes!J54 -> 0 | J55: =WINEP_Schemes!I54 -> 0 | K55: =WINEP_Schemes!K54 -> 0 | L55: =WINEP_Schemes!L54 -> 0 | M55: =WINEP_Schemes!M54 -> 0 | N55: =WINEP_Schemes!N54 -> 0 | O55: 0 | P55: 0 | Q55: 0 | R55: 0 | S55: 0 | T55: 0 | U55: 0 | V55: 0
C56: =WINEP_Schemes!C55 -> 0 | D56: =WINEP_Schemes!D55 -> 0 | E56: =WINEP_Schemes!E55 -> 0 | F56: =WINEP_Schemes!F55 -> 0 | G56: =WINEP_Schemes!G55 -> 0 | H56: =WINEP_Schemes!H55 -> 0 | I56: =WINEP_Schemes!J55 -> 0 | J56: =WINEP_Schemes!I55 -> 0 | K56: =WINEP_Schemes!K55 -> 0 | L56: =WINEP_Schemes!L55 -> 0 | M56: =WINEP_Schemes!M55 -> 0 | N56: =WINEP_Schemes!N55 -> 0 | O56: 0 | P56: 0 | Q56: 0 | R56: 0 | S56: 0 | T56: 0 | U56: 0 | V56: 0
C57: =WINEP_Schemes!C56 -> 0 | D57: =WINEP_Schemes!D56 -> 0 | E57: =WINEP_Schemes!E56 -> 0 | F57: =WINEP_Schemes!F56 -> 0 | G57: =WINEP_Schemes!G56 -> 0 | H57: =WINEP_Schemes!H56 -> 0 | I57: =WINEP_Schemes!J56 -> 0 | J57: =WINEP_Schemes!I56 -> 0 | K57: =WINEP_Schemes!K56 -> 0 | L57: =WINEP_Schemes!L56 -> 0 | M57: =WINEP_Schemes!M56 -> 0 | N57: =WINEP_Schemes!N56 -> 0 | O57: 0 | P57: 0 | Q57: 0 | R57: 0 | S57: 0 | T57: 0 | U57: 0 | V57: 0
C58: =WINEP_Schemes!C57 -> 0 | D58: =WINEP_Schemes!D57 -> 0 | E58: =WINEP_Schemes!E57 -> 0 | F58: =WINEP_Schemes!F57 -> 0 | G58: =WINEP_Schemes!G57 -> 0 | H58: =WINEP_Schemes!H57 -> 0 | I58: =WINEP_Schemes!J57 -> 0 | J58: =WINEP_Schemes!I57 -> 0 | K58: =WINEP_Schemes!K57 -> 0 | L58: =WINEP_Schemes!L57 -> 0 | M58: =WINEP_Schemes!M57 -> 0 | N58: =WINEP_Schemes!N57 -> 0 | O58: 0 | P58: 0 | Q58: 0 | R58: 0 | S58: 0 | T58: 0 | U58: 0 | V58: 0
A61: EXPAND OR REDUCE THE BLOCK ABOVE TO INCLUDE ALL SCHEMES ON THE INPUT SHEET
Q63: =SUM(Q11:Q58) -> -1.071 | R63: =SUM(R11:R58) -> -1.071 | S63: 0 | T63: 0 | U63: 0 | V63: 0
B64: Check the total WINEP reconciliation against the sum of the price control totals
E66: Total WINEP Reconciliation | F66: =Q63 -> -1.071 | G66: £m
E67: Sum of the WINEP Reconciliation by price control | F67: =SUM(R63:V63) -> -1.071 | G67: £m
E69: Price Control Reconciliation vs Total Reconciliation - check | F69: =IF( F67 - F66 > Chk_Tol, 1, 0) -> 0 | G69: check
B71: Total WINEP reconciliation for each price control
E73: Total Final Reconciliation, water resources | F73: =R63 -> -1.071 | G73: £m
E74: Total Final Reconciliation, water network | F74: =S63 -> 0 | G74: £m
E75: Total Final Reconciliation, wastewater network | F75: =T63 -> 0 | G75: £m
E76: Total Final Reconciliation, bioresources | F76: =U63 -> 0 | G76: £m
E77: Total Final Reconciliation, dummy | F77: =V63 -> 0 | G77: £m
A80: End of sheet

Sheet Outputs >>

Sheet Annual_Outputs
A1: =RIGHT(CELL("filename", $A$1), LEN(CELL("filename", $A$1)) - SEARCH("]", CELL("filename", $A$1))) -> Annual_Outputs
E2: =Time!E25 -> Model period ending | F2: =Check!F2 -> 0 | G2: Checks | J2: =Time!J$25 -> 2019-03-31 | K2: =Time!K$25 -> 2020-03-31 | L2: =Time!L$25 -> 2021-03-31 | M2: =Time!M$25 -> 2022-03-31 | N2: =Time!N$25 -> 2023-03-31 | O2: =Time!O$25 -> 2024-03-31 | P2: =Time!P$25 -> 2025-03-31
E3: =Time!E107 -> Timeline label | F3: =Check!F3 -> 3 | G3: Track chgs | J3: =Time!J$107 -> Pre-Fcst | K3: =Time!K$107 -> Pre-Fcst | L3: =Time!L$107 -> Forecast | M3: =Time!M$107 -> Forecast | N3: =Time!N$107 -> Forecast | O3: =Time!O$107 -> Forecast | P3: =Time!P$107 -> Forecast
E4: =Time!E130 -> Financial year ending | J4: =Time!J$130 -> 2019 | K4: =Time!K$130 -> 2020 | L4: =Time!L$130 -> 2021 | M4: =Time!M$130 -> 2022 | N4: =Time!N$130 -> 2023 | O4: =Time!O$130 -> 2024 | P4: =Time!P$130 -> 2025
E5: =Time!E5 -> Model column counter | F5: Total | G5: Unit | J5: =Time!I$10 -> 0 | K5: =Time!J$10 -> 1 | L5: =Time!K$10 -> 2 | M5: =Time!L$10 -> 3 | N5: =Time!M$10 -> 4 | O5: =Time!N$10 -> 5 | P5: =Time!O$10 -> 6
A7: ANNUAL ALLOWED COST
B9: WINEP reconciliation profiled across final 3 years of period
E11: =WINEP_Allowance!E73 -> Total Final Reconciliation, water resources | F11: =WINEP_Allowance!F73 -> -1.071 | G11: =WINEP_Allowance!G73 -> £m
E12: =WINEP_Allowance!E74 -> Total Final Reconciliation, water network | F12: =WINEP_Allowance!F74 -> 0 | G12: =WINEP_Allowance!G74 -> £m
E13: =WINEP_Allowance!E75 -> Total Final Reconciliation, wastewater network | F13: =WINEP_Allowance!F75 -> 0 | G13: =WINEP_Allowance!G75 -> £m
E14: =WINEP_Allowance!E76 -> Total Final Reconciliation, bioresources | F14: =WINEP_Allowance!F76 -> 0 | G14: =WINEP_Allowance!G76 -> £m
E15: =WINEP_Allowance!E77 -> Total Final Reconciliation, dummy | F15: =WINEP_Allowance!F77 -> 0 | G15: =WINEP_Allowance!G77 -> £m
E17: =Time!E$93 -> Start of adjustment profiling flag | F17: =Time!F$93 -> 0 | G17: =Time!G$93 -> counter | H17: =Time!H$93 -> 3 | I17: =Time!I$93 -> 0 | J17: =Time!J$93 -> 0 | K17: =Time!K$93 -> 0 | L17: =Time!L$93 -> 0 | M17: =Time!M$93 -> 0 | N17: =Time!N$93 -> 1 | O17: =Time!O$93 -> 1 | P17: =Time!P$93 -> 1
E19: Total Final Reconciliation - profiled, water resources | G19: £m | H19: =SUM(J19:P19) -> -1.071 | J19: =IF( J$17 = 1, $F11 / 3, 0) -> 0 | K19: 0 | L19: 0 | M19: 0 | N19: =IF( N$17 = 1, $F11 / 3, 0) -> -0.357 | O19: =IF( O$17 = 1, $F11 / 3, 0) -> -0.357 | P19: -0.357
E20: Total Final Reconciliation - profiled, water network | G20: £m | H20: =SUM(J20:P20) -> 0 | J20: =IF( J$17 = 1, $F12 / 3, 0) -> 0 | K20: 0 | L20: 0 | M20: 0 | N20: =IF( N$17 = 1, $F12 / 3, 0) -> 0 | O20: 0 | P20: 0
E21: Total Final Reconciliation - profiled, wastewater network | G21: £m | H21: 0 | J21: =IF( J$17 = 1, $F13 / 3, 0) -> 0 | K21: 0 | L21: 0 | M21: 0 | N21: =IF( N$17 = 1, $F13 / 3, 0) -> 0 | O21: 0 | P21: 0
E22: Total Final Reconciliation - profiled, bioresources | G22: £m | H22: 0 | J22: =IF( J$17 = 1, $F14 / 3, 0) -> 0 | K22: 0 | L22: 0 | M22: 0 | N22: =IF( N$17 = 1, $F14 / 3, 0) -> 0 | O22: 0 | P22: 0
E23: Total Final Reconciliation - profiled, dummy | G23: £m | H23: 0 | J23: =IF( J$17 = 1, $F15 / 3, 0) -> 0 | K23: 0 | L23: 0 | M23: 0 | N23: =IF( N$17 = 1, $F15 / 3, 0) -> 0 | O23: 0 | P23: 0
C25: WINEP reconciliation for cost reconciliation model
E26: WINEP Reconciliation, water resources - without adjustment for time value of money | F26: =F19 -> 0 | G26: £m | H26: -1.071 | I26: 0 | J26: 0 | K26: 0 | L26: 0 | M26: 0 | N26: -0.357 | O26: -0.357 | P26: -0.357
E27: WINEP Reconciliation, water network - without adjustment for time value of money | F27: =F20 -> 0 | G27: £m | H27: 0 | I27: 0 | J27: 0 | K27: 0 | L27: 0 | M27: 0 | N27: 0 | O27: 0 | P27: 0
E28: WINEP Reconciliation, wastewater network - without adjustment for time value of money | F28: =F21 -> 0 | G28: £m | H28: 0 | I28: 0 | J28: 0 | K28: 0 | L28: 0 | M28: 0 | N28: 0 | O28: 0 | P28: 0
E29: WINEP Reconciliation, bioresources - without adjustment for time value of money | F29: =F22 -> 0 | G29: £m | H29: 0 | I29: 0 | J29: 0 | K29: 0 | L29: 0 | M29: 0 | N29: 0 | O29: 0 | P29: 0
E30: WINEP Reconciliation, dummy - without adjustment for time value of money | F30: =F23 -> 0 | G30: £m | H30: 0 | I30: 0 | J30: 0 | K30: 0 | L30: 0 | M30: 0 | N30: 0 | O30: 0 | P30: 0
B32: WINEP reconciliation adjusted for time value of money
E34: =InpActive!E$33 -> Financing cost index | F34: =InpActive!F$33 -> 0 | G34: =InpActive!G$33 -> Index | J34: =InpActive!J$33 -> 0 | K34: =InpActive!K$33 -> 0 | L34: =InpActive!L$33 -> 4 | M34: =InpActive!M$33 -> 3 | N34: =InpActive!N$33 -> 2 | O34: =InpActive!O$33 -> 1 | P34: =InpActive!P$33 -> 0
E35: =InpActive!E$35 -> Financing Cost | F35: =InpActive!F$35 -> 0.0292 | G35: =InpActive!G$35 -> %
E36: Time value of money factor | G36: Factor | J36: =(1+$F35) ^ J$34 -> 1 | K36: =(1+$F35) ^ K$34 -> 1 | L36: =(1+$F35) ^ L$34 -> 1.122016155 | M36: 1.090182817 | N36: =(1+$F35) ^ N$34 -> 1.05925264 | O36: =(1+$F35) ^ O$34 -> 1.0292 | P36: =(1+$F35) ^ P$34 -> 1
E38: =E26 -> WINEP Reconciliation, water resources - without adjustment for time value of money | F38: =F26 -> 0 | G38: =G26 -> £m | H38: =H26 -> -1.071 | I38: 0 | J38: =J26 -> 0 | K38: 0 | L38: 0 | M38: 0 | N38: -0.357 | O38: -0.357 | P38: =P26 -> -0.357
E39: =E27 -> WINEP Reconciliation, water network - without adjustment for time value of money | F39: 0 | G39: £m | H39: =H27 -> 0 | I39: 0 | J39: =J27 -> 0 | K39: 0 | L39: 0 | M39: 0 | N39: 0 | O39: 0 | P39: =P27 -> 0
E40: WINEP Reconciliation, wastewater network - without adjustment for time value of money | F40: 0 | G40: £m | H40: =H28 -> 0 | I40: 0 | J40: =J28 -> 0 | K40: 0 | L40: 0 | M40: 0 | N40: 0 | O40: 0 | P40: =P28 -> 0
E41: WINEP Reconciliation, bioresources - without adjustment for time value of money | F41: 0 | G41: £m | H41: =H29 -> 0 | I41: 0 | J41: =J29 -> 0 | K41: 0 | L41: 0 | M41: 0 | N41: 0 | O41: 0 | P41: =P29 -> 0
E42: WINEP Reconciliation, dummy - without adjustment for time value of money | F42: 0 | G42: £m | H42: =H30 -> 0 | I42: 0 | J42: =J30 -> 0 | K42: 0 | L42: 0 | M42: 0 | N42: 0 | O42: 0 | P42: =P30 -> 0
E44: =E$36 -> Time value of money factor | F44: =F$36 -> 0 | G44: Factor | H44: 0 | I44: 0 | J44: 1 | K44: 1 | L44: 1.122016155 | M44: 1.090182817 | N44: 1.05925264 | O44: 1.0292 | P44: =P$36 -> 1
C46: WINEP reconciliation for PR24 RCV adjustment
E47: WINEP Reconciliation, water resources - adjusted for time value of money | G47: £m | H47: =SUM(J47:P47) -> -1.102577592 | J47: =J38 * J$44 -> 0 | K47: 0 | L47: 0 | M47: 0 | N47: -0.3781531925 | O47: -0.3674244 | P47: -0.357
E48: WINEP Reconciliation, water network - adjusted for time value of money | G48: £m | H48: =SUM(J48:P48) -> 0 | J48: =J39 * J$44 -> 0 | K48: 0 | L48: 0 | M48: 0 | N48: =N39 * N$44 -> 0 | O48: 0 | P48: =P39 * P$44 -> 0
E49: WINEP Reconciliation, wastewater network - adjusted for time value of money | G49: £m | H49: 0 | J49: =J40 * J$44 -> 0 | K49: 0 | L49: 0 | M49: 0 | N49: =N40 * N$44 -> 0 | O49: 0 | P49: =P40 * P$44 -> 0
E50: WINEP Reconciliation, bioresources - adjusted for time value of money | G50: £m | H50: 0 | J50: =J41 * J$44 -> 0 | K50: 0 | L50: 0 | M50: 0 | N50: =N41 * N$44 -> 0 | O50: 0 | P50: =P41 * P$44 -> 0
E51: WINEP Reconciliation, dummy - adjusted for time value of money | G51: £m | H51: 0 | J51: =J42 * J$44 -> 0 | K51: 0 | L51: 0 | M51: 0 | N51: =N42 * N$44 -> 0 | O51: 0 | P51: =P42 * P$44 -> 0
A54: End of sheet

Sheet F_Outputs
C1: PR19FM007_WINEP_Out
A2: Acronym | B2: Reference | C2: Item description | D2: Unit | E2: Model | F2: 2022-23 | G2: 2023-24 | H2: 2024-25 | I2: 2020-25
B4: BoN | C4: =Annual_Outputs!E26 -> WINEP Reconciliation, water resources - without adjustment for time value of money | D4: £m | E4: Price Review 2019 | F4: =Annual_Outputs!N26 -> -0.357 | G4: =Annual_Outputs!O26 -> -0.357 | H4: =Annual_Outputs!P26 -> -0.357 | I4: =Annual_Outputs!H26 -> -1.071
B5: BoN | C5: =Annual_Outputs!E27 -> WINEP Reconciliation, water network - without adjustment for time value of money | D5: £m | E5: Price Review 2019 | F5: =Annual_Outputs!N27 -> 0 | G5: =Annual_Outputs!O27 -> 0 | H5: =Annual_Outputs!P27 -> 0 | I5: =Annual_Outputs!H27 -> 0
B6: BoN | C6: =Annual_Outputs!E28 -> WINEP Reconciliation, wastewater network - without adjustment for time value of money | D6: £m | E6: Price Review 2019 | F6: =Annual_Outputs!N28 -> 0 | G6: =Annual_Outputs!O28 -> 0 | H6: =Annual_Outputs!P28 -> 0 | I6: =Annual_Outputs!H28 -> 0
B7: BoN | C7: =Annual_Outputs!E29 -> WINEP Reconciliation, bioresources - without adjustment for time value of money | D7: £m | E7: Price Review 2019 | F7: =Annual_Outputs!N29 -> 0 | G7: =Annual_Outputs!O29 -> 0 | H7: =Annual_Outputs!P29 -> 0 | I7: =Annual_Outputs!H29 -> 0
B8: BoN | C8: =Annual_Outputs!E30 -> WINEP Reconciliation, dummy - without adjustment for time value of money | D8: £m | E8: Price Review 2019 | F8: =Annual_Outputs!N30 -> 0 | G8: =Annual_Outputs!O30 -> 0 | H8: =Annual_Outputs!P30 -> 0 | I8: =Annual_Outputs!H30 -> 0
B9: BoN | C9: =Annual_Outputs!E47 -> WINEP Reconciliation, water resources - adjusted for time value of money | D9: £m | E9: Price Review 2019 | F9: =Annual_Outputs!N47 -> -0.3781531925 | G9: =Annual_Outputs!O47 -> -0.3674244 | H9: =Annual_Outputs!P47 -> -0.357 | I9: =Annual_Outputs!H47 -> -1.102577592
B10: BoN | C10: =Annual_Outputs!E48 -> WINEP Reconciliation, water network - adjusted for time value of money | D10: £m | E10: Price Review 2019 | F10: =Annual_Outputs!N48 -> 0 | G10: =Annual_Outputs!O48 -> 0 | H10: =Annual_Outputs!P48 -> 0 | I10: =Annual_Outputs!H48 -> 0
B11: BoN | C11: =Annual_Outputs!E49 -> WINEP Reconciliation, wastewater network - adjusted for time value of money | D11: £m | E11: Price Review 2019 | F11: =Annual_Outputs!N49 -> 0 | G11: =Annual_Outputs!O49 -> 0 | H11: =Annual_Outputs!P49 -> 0 | I11: =Annual_Outputs!H49 -> 0
B12: BoN | C12: =Annual_Outputs!E50 -> WINEP Reconciliation, bioresources - adjusted for time value of money | D12: £m | E12: Price Review 2019 | F12: =Annual_Outputs!N50 -> 0 | G12: =Annual_Outputs!O50 -> 0 | H12: =Annual_Outputs!P50 -> 0 | I12: =Annual_Outputs!H50 -> 0
B13: BoN | C13: =Annual_Outputs!E51 -> WINEP Reconciliation, dummy - adjusted for time value of money | D13: £m | E13: Price Review 2019 | F13: =Annual_Outputs!N51 -> 0 | G13: =Annual_Outputs!O51 -> 0 | H13: =Annual_Outputs!P51 -> 0 | I13: =Annual_Outputs!H51 -> 0
B14: BoN_QA1 | C14: WINEP reconciliation model date stamp | D14: text | E14: Price Review 2019 | F14: =CONCATENATE("[…]", TEXT(NOW(), "dd/mm/yyy hh:mm:ss")) -> […]21/08/2023 15:21:24 | G14: […]21/08/2023 15:21:24 | H14: […]21/08/2023 15:21:24 | I14: […]21/08/2023 15:21:24
B15: BoN_QA2 | C15: WINEP reconciliation model time stamp | D15: text | E15: Price Review 2019 | F15: […]21/08/2023 15:21:24 | G15: […]21/08/2023 15:21:24 | H15: […]21/08/2023 15:21:24 | I15: […]21/08/2023 15:21:24
A18: End of sheet

Sheet QA >>

Sheet Track
A1: =RIGHT(CELL("filename", $A$1), LEN(CELL("filename", $A$1)) - SEARCH("]", CELL("filename", $A$1))) -> Track | M1: do not del col | O1: do not del col
F2: =Check!$F$2 -> 0 | G2: Checks | J2: =SUM(J7:J28) -> 3
F3: =J2 -> 3 | G3: Track chgs
G5: Unit | J5: =MATCH($H$6, M6:O6, 0) -> 2 | K5: Difference | L5: Diff %
E6: Comparison column label | H6: Nil inputs | N6: Nil inputs
E7: [do not delete row]
A8: INPUTS
J9: =IF(ABS(K9) > InpActive!$F$42, 1, 0) -> 0 | K9: =H9 - INDEX(M9:O9, $J$5) -> 0 | L9: =IF(ABS(K9) > InpActive!$F$42, IF(INDEX(M9:O9, $J$5) = 0, 0, H9 / INDEX(M9:O9, $J$5) - 1), 0) -> 0
C10: Inputs | J10: =IF(ABS(K10) > InpActive!$F$42, 1, 0) -> 0 | K10: 0 | L10: =IF(ABS(K10) > InpActive!$F$42, IF(INDEX(M10:O10, $J$5) = 0, 0, H10 / INDEX(M10:O10, $J$5) - 1), 0) -> 0
E11: =InpActive!E35 -> Financing Cost | G11: =InpActive!G35 -> % | H11: =InpActive!F35 -> 0.0292 | J11: =IF(ABS(K11) > InpActive!$F$42, 1, 0) -> 1 | K11: 0.0292 | L11: =IF(ABS(K11) > InpActive!$F$42, IF(INDEX(M11:O11, $J$5) = 0, 0, H11 / INDEX(M11:O11, $J$5) - 1), 0) -> 0 | N11: 0
J12: =IF(ABS(K12) > InpActive!$F$42, 1, 0) -> 0 | K12: 0 | L12: =IF(ABS(K12) > InpActive!$F$42, IF(INDEX(M12:O12, $J$5) = 0, 0, H12 / INDEX(M12:O12, $J$5) - 1), 0) -> 0 | N12: 0
J13: =IF(ABS(K13) > InpActive!$F$42, 1, 0) -> 0 | K13: 0 | L13: =IF(ABS(K13) > InpActive!$F$42, IF(INDEX(M13:O13, $J$5) = 0, 0, H13 / INDEX(M13:O13, $J$5) - 1), 0) -> 0 | N13: 0
C14: Outputs | J14: =IF(ABS(K14) > InpActive!$F$42, 1, 0) -> 0 | K14: 0 | L14: =IF(ABS(K14) > InpActive!$F$42, IF(INDEX(M14:O14, $J$5) = 0, 0, H14 / INDEX(M14:O14, $J$5) - 1), 0) -> 0
E15: =Annual_Outputs!E26 -> WINEP Reconciliation, water resources - without adjustment for time value of money | G15: =Annual_Outputs!G26 -> £m | H15: =Annual_Outputs!H26 -> -1.071 | J15: =IF(ABS(K15) > InpActive!$F$42, 1, 0) -> 1 | K15: -1.071 | L15: =IF(ABS(K15) > InpActive!$F$42, IF(INDEX(M15:O15, $J$5) = 0, 0, H15 / INDEX(M15:O15, $J$5) - 1), 0) -> 0 | N15: 0
E16: =Annual_Outputs!E27 -> WINEP Reconciliation, water network - without adjustment for time value of money | G16: =Annual_Outputs!G27 -> £m | H16: =Annual_Outputs!H27 -> 0 | J16: =IF(ABS(K16) > InpActive!$F$42, 1, 0) -> 0 | K16: 0 | L16: =IF(ABS(K16) > InpActive!$F$42, IF(INDEX(M16:O16, $J$5) = 0, 0, H16 / INDEX(M16:O16, $J$5) - 1), 0) -> 0 | N16: 0
E17: =Annual_Outputs!E28 -> WINEP Reconciliation, wastewater network - without adjustment for time value of money | G17: =Annual_Outputs!G28 -> £m | H17: =Annual_Outputs!H28 -> 0 | J17: =IF(ABS(K17) > InpActive!$F$42, 1, 0) -> 0 | K17: =H17 - INDEX(M17:O17, $J$5) -> 0 | L17: =IF(ABS(K17) > InpActive!$F$42, IF(INDEX(M17:O17, $J$5) = 0, 0, H17 / INDEX(M17:O17, $J$5) - 1), 0) -> 0 | N17: 0
E18: =Annual_Outputs!E29 -> WINEP Reconciliation, bioresources - without adjustment for time value of money | G18: =Annual_Outputs!G29 -> £m | H18: =Annual_Outputs!H29 -> 0 | J18: =IF(ABS(K18) > InpActive!$F$42, 1, 0) -> 0 | K18: 0 | L18: =IF(ABS(K18) > InpActive!$F$42, IF(INDEX(M18:O18, $J$5) = 0, 0, H18 / INDEX(M18:O18, $J$5) - 1), 0) -> 0 | N18: 0
E19: =Annual_Outputs!E30 -> WINEP Reconciliation, dummy - without adjustment for time value of money | G19: =Annual_Outputs!G30 -> £m | H19: =Annual_Outputs!H30 -> 0 | J19: =IF(ABS(K19) > InpActive!$F$42, 1, 0) -> 0 | K19: 0 | L19: =IF(ABS(K19) > InpActive!$F$42, IF(INDEX(M19:O19, $J$5) = 0, 0, H19 / INDEX(M19:O19, $J$5) - 1), 0) -> 0 | N19: 0
E20: =Annual_Outputs!E47 -> WINEP Reconciliation, water resources - adjusted for time value of money | G20: =Annual_Outputs!G47 -> £m | H20: =Annual_Outputs!H47 -> -1.102577592 | J20: =IF(ABS(K20) > InpActive!$F$42, 1, 0) -> 1 | K20: =H20 - INDEX(M20:O20, $J$5) -> -1.102577592 | L20: =IF(ABS(K20) > InpActive!$F$42, IF(INDEX(M20:O20, $J$5) = 0, 0, H20 / INDEX(M20:O20, $J$5) - 1), 0) -> 0 | N20: 0
E21: =Annual_Outputs!E48 -> WINEP Reconciliation, water network - adjusted for time value of money | G21: =Annual_Outputs!G48 -> £m | H21: =Annual_Outputs!H48 -> 0 | J21: =IF(ABS(K21) > InpActive!$F$42, 1, 0) -> 0 | K21: =H21 - INDEX(M21:O21, $J$5) -> 0 | L21: =IF(ABS(K21) > InpActive!$F$42, IF(INDEX(M21:O21, $J$5) = 0, 0, H21 / INDEX(M21:O21, $J$5) - 1), 0) -> 0 | N21: 0
E22: =Annual_Outputs!E49 -> WINEP Reconciliation, wastewater network - adjusted for time value of money | G22: =Annual_Outputs!G49 -> £m | H22: =Annual_Outputs!H49 -> 0 | J22: =IF(ABS(K22) > InpActive!$F$42, 1, 0) -> 0 | K22: 0 | L22: =IF(ABS(K22) > InpActive!$F$42, IF(INDEX(M22:O22, $J$5) = 0, 0, H22 / INDEX(M22:O22, $J$5) - 1), 0) -> 0 | N22: 0
E23: =Annual_Outputs!E50 -> WINEP Reconciliation, bioresources - adjusted for time value of money | G23: =Annual_Outputs!G50 -> £m | H23: =Annual_Outputs!H50 -> 0 | J23: =IF(ABS(K23) > InpActive!$F$42, 1, 0) -> 0 | K23: 0 | L23: =IF(ABS(K23) > InpActive!$F$42, IF(INDEX(M23:O23, $J$5) = 0, 0, H23 / INDEX(M23:O23, $J$5) - 1), 0) -> 0 | N23: 0
E24: =Annual_Outputs!E51 -> WINEP Reconciliation, dummy - adjusted for time value of money | G24: =Annual_Outputs!G51 -> £m | H24: =Annual_Outputs!H51 -> 0 | J24: =IF(ABS(K24) > InpActive!$F$42, 1, 0) -> 0 | K24: 0 | L24: =IF(ABS(K24) > InpActive!$F$42, IF(INDEX(M24:O24, $J$5) = 0, 0, H24 / INDEX(M24:O24, $J$5) - 1), 0) -> 0 | N24: 0
J25: =IF(ABS(K25) > InpActive!$F$42, 1, 0) -> 0 | K25: 0 | L25: =IF(ABS(K25) > InpActive!$F$42, IF(INDEX(M25:O25, $J$5) = 0, 0, H25 / INDEX(M25:O25, $J$5) - 1), 0) -> 0 | N25: 0
J26: =IF(ABS(K26) > InpActive!$F$42, 1, 0) -> 0 | K26: 0 | L26: =IF(ABS(K26) > InpActive!$F$42, IF(INDEX(M26:O26, $J$5) = 0, 0, H26 / INDEX(M26:O26, $J$5) - 1), 0) -> 0 | N26: 0
A28: INFO ONLY
E30: Date | H30: =TODAY() -> 2023-08-21
E31: Time | H31: =NOW() -> 45159.63986
E32: File | H32: =MID(CELL("filename",$A$1), SEARCH("[", CELL("filename",$A$1)) + 1, SEARCH("]", CELL("filename",$A$1)) - SEARCH("[", CELL("filename",$A$1)) - 1) -> NES_WINEP-Reconciliation-Model-Dec-2020 v1n-NES.xlsm
E33: [do not delete row] | J33: range end
E35: Comment: Key input and logic changes | N35: Nil inputs
E36: Comment: Key result changes
A38: End of sheet

Sheet Check
A1: =RIGHT(CELL("filename", $A$1), LEN(CELL("filename", $A$1)) - SEARCH("]", CELL("filename", $A$1))) -> Check
F2: =F11 -> 0 | G2: Checks
F3: =F24 -> 3 | G3: Track chgs
F5: Constant | G5: Unit
A7: CHECK SUMMARY
A9: MODEL INTEGRITY CHECKS
E11: Total model integrity checks | F11: =SUM(F16:F21) -> 0
E13: [do not delete row]
B15: WINEP RECONCILIATION
E16: =WINEP_Allowance!E69 -> Price Control Reconciliation vs Total Reconciliation - check | F16: =WINEP_Allowance!F69 -> 0 | G16: =WINEP_Allowance!G69 -> check
B18: TIME
E19: =Time!E121 -> Modelling period check | F19: =Time!F121 -> 0 | G19: =Time!G121 -> check
E22: [do not delete row]
E24: Total track changes | F24: =Track!J2 -> 3
A27: End of sheet
